Workbook

Sheet Plan0_Definições (hidden)
B2: PROGRAMA ESTRADAS DA INTEGRAÇÃO PROJETO DE ADEQUAÇÃO, READEQUAÇÃO, MAUTENÇÃO E OU MELHORIAS DE ESTRADAS RURAIS MUNICIPAIS - CUSTEIO SOMENTE ÓLEO DIESEL COM BASE EM RTV - Relatório Técnico de Vistoria e Projetos Técnicos
B4: 1 . DEFINIÇÕES
B6: 1.1 | C6: ABERTURA DE ESTRADAS RURAIS: obra destinada a dar acesso aos lotes que estão sendo objeto de reforma agrária, permitindo assim o livre acesso dos moradores ao comércio, educação, saúde e cidadania. Utilizando –se de práticas para a Conservação de solos e consequentemente das estradas, com a construção de estruturas para captação e retenção de águas pluviais.
B7: 1.2 | C7: ADEQUAÇÃO DE ESTRADAS RURAIS*: obras destinadas à execução de melhoramentos em estradas rurais de menor hierarquia funcional, possuindo superfície de rolamento “não pavimentada”, cujo objetivo é o de elevar seu padrão operacional. Inclui-se nessa modalidade de intervenção: • Serviços de re-locação de parte de seu traçado; • Re-conformação de segmentos do greide; • Execução de camadas de reforço do sub-leito e/ou; • Revestimento primário. *Fonte: Estradas rurais Técnicas Adequadas de Manutenção. Florianópolis DER, 2003. 236 p. il. 30cm.
B8: 1.3 | C8: MANUTENÇÃO DE ESTRADA RURAL: pode ser definido como amplo conjunto de atividades destinadas a assegurar um transporte seguro, econômico e confortável em uma estrada ou rede de estradas. Uma das finalidades primordiais da manutenção é evitar, ao máximo possível, a perda desnecessária do capital já investido, mediante a proteção física da estrutura básica e da superfície de rolamento da estrada. A manutenção deve evitar a deterioração precoce da estrutura das estradas e, por conseguinte, a necessidade de serviços de reconstrução. Inclui-se nessa definição, as atividades de manutenção corretiva rotineira e periódica.
B9: 1.4 | C9: MELHORIA DE ESTRADA RURAL: Conjunto de operações que acrescentam as rodovias (estradas) existentes características novas, sem modificar as existentes ex. colocação de bueiros, sarjeteamento, bigodes, caixas de retenção. (fonte: DNER, glossário de termos técnicos rodoviários, Rio de janeiro, 1997, 266p. IPR. Publ.; 700).
B10: 1.5 | C10: Trafegabilidade é uma palavra derivada de trafegável, que se pode trafegar, andar no tráfego; fazer algum caminho; andar, transitar: os pedestres precisam de cuidado ao trafegar por ruas movimentadas. (fonte: https://www.dicio.com.br)
B11: 1.6 | C11: XXI - serviço de engenharia: toda atividade ou conjunto de atividades destinadas a obter determinada utilidade, intelectual ou material, de interesse para a Administração e que, não enquadradas no conceito de obra a que se refere o inciso XII do caput deste artigo, são estabelecidas, por força de lei, como privativas das profissões de arquiteto e engenheiro ou de técnicos especializados, que compreendem: a) serviço comum de engenharia: todo serviço de engenharia que tem por objeto ações, objetivamente padronizáveis em termos de desempenho e qualidade, de manutenção, de adequação e de adaptação de bens móveis e imóveis, com preservação das características originais dos bens; b) serviço especial de engenharia: aquele que, por sua alta heterogeneidade ou complexidade, não pode se enquadrar na definição constante da alínea “a” deste inciso; fonte: CAPÍTULO III, DAS DEFINIÇÕES, Art. 6º Para os fins desta Lei LEI Nº 14.133, DE 1º DE ABRIL DE 2021
B12: 1.7 | C12: XXIV - anteprojeto: peça técnica com todos os subsídios necessários à elaboração do projeto básico, que deve conter, no mínimo, os seguintes elementos: L14133 http://www.planalto.gov.br/ccivil_03/_ato2019-2022/2021/lei/L14133.htm 4 of 73 30/11/2022 09:56 a) demonstração e justificativa do programa de necessidades, avaliação de demanda do público-alvo, motivação técnico-econômico-social do empreendimento, visão global dos investimentos e definições relacionadas ao nível de serviço desejado; b) condições de solidez, de segurança e de durabilidade; c) prazo de entrega; d) estética do projeto arquitetônico, traçado geométrico e/ou projeto da área de influência, quando cabível; e) parâmetros de adequação ao interesse público, de economia na utilização, de facilidade na execução, de impacto ambiental e de acessibilidade; f) proposta de concepção da obra ou do serviço de engenharia; g) projetos anteriores ou estudos preliminares que embasaram a concepção proposta; h) levantamento topográfico e cadastral; i) pareceres de sondagem; j) memorial descritivo dos elementos da edificação, dos componentes construtivos e dos materiais de construção, de forma a estabelecer padrões mínimos para a contratação; fonte: CAPÍTULO III, DAS DEFINIÇÕES, Art. 6º Para os fins desta Lei LEI Nº 14.133, DE 1º DE ABRIL DE 2021, consideram-se:
B13: 1.8 | C13: XXV - projeto básico: conjunto de elementos necessários e suficientes, com nível de precisão adequado para definir e dimensionar a obra ou o serviço, ou o complexo de obras ou de serviços objeto da licitação, elaborado com base nas indicações dos estudos técnicos preliminares, que assegure a viabilidade técnica e o adequado tratamento do impacto ambiental do empreendimento e que possibilite a avaliação do custo da obra e a definição dos métodos e do prazo de execução, devendo conter os seguintes elementos: a) levantamentos topográficos e cadastrais, sondagens e ensaios geotécnicos, ensaios e análises laboratoriais, estudos socioambientais e demais dados e levantamentos necessários para execução da solução escolhida; b) soluções técnicas globais e localizadas, suficientemente detalhadas, de forma a evitar, por ocasião da elaboração do projeto executivo e da realização das obras e montagem, a necessidade de reformulações ou variantes quanto à qualidade, ao preço e ao prazo inicialmente definidos; c) identificação dos tipos de serviços a executar e dos materiais e equipamentos a incorporar à obra, bem como das suas especificações, de modo a assegurar os melhores resultados para o empreendimento e a segurança executiva na utilização do objeto, para os fins a que se destina, considerados os riscos e os perigos identificáveis, sem frustrar o caráter competitivo para a sua execução; d) informações que possibilitem o estudo e a definição de métodos construtivos, de instalações provisórias e de condições organizacionais para a obra, sem frustrar o caráter competitivo para a sua execução; e) subsídios para montagem do plano de licitação e gestão da obra, compreendidos a sua programação, a estratégia de suprimentos, as normas de fiscalização e outros dados necessários em cada caso; f) orçamento detalhado do custo global da obra, fundamentado em quantitativos de serviços e fornecimentos propriamente avaliados, obrigatório exclusivamente para os regimes de execução previstos nos incisos I, II, III, IV e VII do caput do art. 46 desta Lei; fonte: CAPÍTULO III, DAS DEFINIÇÕES, Art. 6º Para os fins desta Lei LEI Nº 14.133, DE 1º DE ABRIL DE 2021
B14: 1.9 | C14: XXVI - projeto executivo: conjunto de elementos necessários e suficientes à execução completa da obra, com o detalhamento das soluções previstas no projeto básico, a identificação de serviços, de materiais e de equipamentos a serem incorporados à obra, bem como suas especificações técnicas, de acordo com as normas técnicas pertinentes; fonte: CAPÍTULO III, DAS DEFINIÇÕES, Art. 6º LEI Nº 14.133, DE 1º DE ABRIL DE 2021:
B15: 1.10 | C15: Art. 169. As contratações públicas deverão submeter-se a práticas contínuas e permanentes de gestão de riscos e de controle preventivo, inclusive mediante adoção de recursos de tecnologia da informação, e, além de estar subordinadas ao controle social, sujeitar-se-ão às seguintes linhas de defesa: I - primeira linha de defesa, integrada por servidores e empregados públicos, agentes de licitação e autoridades que atuam na estrutura de governança do órgão ou entidade; II - segunda linha de defesa, integrada pelas unidades de assessoramento jurídico e de controle interno do próprio órgão ou entidade; III - terceira linha de defesa, integrada pelo órgão central de controle interno da Administração e pelo tribunal de contas... fonte: CAPÍTULO III, DO CONTROLE DAS CONTRATAÇÕES Art. 169.LEI Nº 14.133, DE 1º DE ABRIL DE 2021

Sheet Plan1 ORIENTAÇÕES PREENCHIMENTO (hidden)
A1: PROGRAMA ESTRADAS DA INTEGRAÇÃO PROJETO DE ADEQUAÇÃO, READEQUAÇÃO, MAUTENÇÃO E OU MELHORIAS DE ESTRADAS RURAIS MUNICIPAIS - CUSTEIO SOMENTE ÓLEO DIESEL COM BASE EM RTV - Relatório Técnico de Vistoria e Projetos Técnicos
A2: 1 . ORIENTAÇÕES PARA O PREENCHIMENTO DA PLANILHA
A4: 1.1 | B4: Todas as células com a cor AZUL devem ser preenchidas pelo MUNICÍPIO
A5: 1.2 | B5: Todas as células preenchidas de VERDE são resultados automáticos de fórmulas e NÃO PODEM SER MODIFICADAS. Caso haja necessidade de incluir novas linhas na planilha é importante verificar se as fórmulas estão contemplando todas as células, conferindo o Número e Letra na fórmula ao clicar nelas. Nesse caso, excepcionalmente, deve-se fazer a correção da fórmula para anular erros (por isso as células não foram bloqueadas).
A6: 1.3 | B6: A logomarca do município deve ser inserida dentro do quadro abaixo e a mesma será replicada em todas as páginas do plano de trabalho.
A7: 1.4 | B7: Caso a largura de alguma coluna precise ser modificada, para impressão não cortar a página, clicar em Exibir > Vizualização da Quebra de Página: arrastar a linha de quebra para contemplar toda a tabela. Depois Exibir > Normal, para voltar à visualização de planilha.
A8: 1.5 | B8: O valor de contrapartida municipal é obrigatória para todas as trasnferencias voluntárias, conforme Lei Federal- nº 14.133 e Decreto Estadual nº 10086.
A10: 2 . ORIENTAÇÕES PARA INCLUSÃO DO PLANO DE TRABALHO NO E-PROTOCOLO
A12: 2.1 | B12: Para assinatura, há duas opções: a) Preferencialmente, salvar o documento em .pdf (selecionar todas as pastas da planilha antes de converter para que todas sejam incluídas no documento). Inserir no e-protocolo e assinar eletronicamente; b) Ou o documento pode ser impresso englobando todas as pastas do excel. Acessar: Arquivo> Imprimir> Configurações> Imprimir Toda a Pasta de Trabalho. Com o documento físico em mãos, após assinado, este será escaneado e salvo no formato pdf. Então pode ser inserido normalmente no e-protocolo.
A13: 2.2 | B13: Com o documento físico em mãos, após assinado, este será escaneado e salvo no formato pdf. Então pode ser inserido normalmente no e-protocolo.
A14: 2.3 | B14: Também deverá ser inserido no e-protocolo outra versão do Plano de Trabalho no formato excel, como anexo. A opção de inserir anexos está localizada logo antes da etapa de encaminhamento conforme exposto na imagem abaixo.
A18: 3 . ÍNDICE DE PASTAS DA PLANILHA
B20: Conteúdo
A21: 1 | B21: Orientações
A22: 2 | B22: 1. Dados Cadastrais do Município - Ao informar o Municipio na lista suspensa os dados - IPDM, CNPJ, Endereço, UF, CEP, Nome do Prefeito serão preenchidos automáricamente, informar demais dados.
B23: 2. Identificação do Objeto - Sua descrição será ajustado automáticamente quando informado na guia suspensa da planilha 2.3. Operações (Plan4 2.3. OPERAÇÕES)
B24: 2.1. Período de Vigência - informado automáticamente conforme extensão do trecho em 24 ou 36 meses.)
A25: 3 | B25: 2.2. Quadro Resumo (Total das Estradas Rurais/trechos indicados nos RTV’s, informar os nomes das estradas delimitada pelas coordenadas inicial e final em UTM)
A26: 4 | B26: 2.3. Operações (Plan4 2.3. OPERAÇÕES) em função do tipo de pavimentos informado através da guia suspensa na planilha ( Plan2 1.DADOS,2.OBJ e 2.1.Vigên), será disponibilizado automáticamente os possiveis serviços a serem projetados na (Plan4 2.3. OPERAÇÕES), podendo estas serem ajustadas conforme a necessidade. Deverá ser apresentado em separado as memorias de calculos e o respectivo termo de referência. O DMT - Distancia Média de Transporte dos materiais a serem trasnportados deve ser elaborado com base em tres possiveis fornecedores.
A27: 5 | B27: 3. Justificativa- Descrever detalhadamente sobre a necessidade da execução da Obra, custo e beneficio em conformidade com a planilha - Plan5 3. JUSTIFIC. e 4.BENEFIC.
B28: 4. Beneficiários elenca- los conforme Plan5 3. JUSTIFIC. e 4.BENEFIC.
A29: 6 | B29: 5. Definição e detalhamento das metas
B30: 6. Etapas de execução - Indicar todos os trechos realacionados na Planilha 3 - 2.2 (Quadro Resumo) - Divididos em Subtrechos- Etapas de 1.000,00 em 1.000,00 m, na quantidade que for necessária.
A31: 7 | B31: 7. Plano de Aplicação dos Recursos Financeiros 8. Capacidade instalada do municipio;
A32: 8 | B32: 9. Previsão de início e fim da execução do objeto (considerar como ponto inicial a publicação no DIOE-PR). Os trechos especificado na planilha Plan8 8.PREVISÃO e 9 CRONOGRAMA devem estar alinhados com a planilha Plan 6 5. METAS e 6.ETAPAS
B33: 10. Cronograma de desembolso (quando necessário ajustar o número de meses entre as parcelas)
A34: 9 | B34: 11. DO MONITORAMENTO, AVALIAÇÃO E DA PRESTAÇÃO DE CONTAS
A35: 10 | B35: 12. Documentos integrantes do plano de trabalho
B36: 12.1 Descrição dos documentos
B37: 12.2 Para obras ou serviços de engenharia e arquitetura.
A38: 11 | B38: 13. Declaração do Responsável Contábil pela Elaboração do Plano de Trabalho
B39: 14. Declaração do Responsável Técnico pela Elaboração do Plano de Trabalho
B40: 15. Declaração do Município
B41: 16. Assinatura do Gestor do Convênio pela SEAB (Chefe do NR)
B42: 17.1 e 17.2 Manifestação técnica do DEAGRO - sede
B43: 18. Aprovação pela SEAB
A44: FORMULÁRIO - PLANO DE TRABALHO VERSÃO FINAL em 08-08-2023
A45: INSIRA DENTRO DO QUADRO A LOGO DO MUNICÍPIO
E46: LOGO

Sheet Plan2 1.DADOS,2.OBJ e 2.1.Vigên
C2: PLANO DE TRABALHO MELHORIA DA TRAFEGABILIDADE EM ESTRADAS RURAIS MUNICIPAIS ÓLEO DIESEL com base no RTV - Relatório Técnico de Vistoria e Projetos Técnicos
B4: 1. DADOS CADASTRAIS
B5: 1.1 DO CONCEDENTE
B7: Secretaria | C7: Secretaria da Agricultura e do Abastecimento
B8: CNPJ: | C8: 76.416.957/0001-85
B9: Endereço: | C9: Rua dos Funcionários nº 1559, Cabral | F9: Município: | G9: Curitiba
B10: UF: | C10: PR | D10: CEP: | E10: 80035-050 | F10: Telefone: | G10: (41) 3313-4000
B11: Contato: | C11: https://www.agricultura.pr.gov.br/Formulario/Fale-com-SEAB
B12: Secretário | C12: Norberto Anacleto Ortigara
B13: Decreto n.º | C13: 0009/2023 | E13: Cargo: | F13: Secretário de Estado da Agricultura e do Abastecimento - SEAB
B14: e-mail: | C14: nortigara@seab.pr.gov.br
B15: Obs.: LGPD - Lei Geral de Proteção de Dados Pessoais, Lei nº 13.709/2018, IPDM - (Índice Ipardes de Desempenho Municipal)
B16: 1.2 DO TOMADOR
B18: Município: | C18: Adrianópolis | F18: IPDM (IPARDES) | H18: =VLOOKUP(C18,Municipios!A:I,2,0) -> 0.6769420531
B19: CNPJ: | C19: =VLOOKUP(C18,Municipios!A:I,5,0) -> 76.105.642/0001-17
B20: Endereço: | C20: =VLOOKUP(C18,Municipios!A:I,7,0) -> Av. Marechal Mascarenhas de Morães, 115, Centr
B21: UF: | C21: PR | D21: CEP: | E21: =VLOOKUP(C18,Municipios!A:I,8,0) -> 83.490-000 | F21: Telefone: | G21: XXXXXXX
B22: e-mail: | C22: XXXXXXXXXXX
B23: Prefeito | C23: =VLOOKUP(C18,Municipios!A:I,9,0) -> Vandir de Oliveira Rosa
B24: CPF - (LGPD*): | C24: XXXXXXXXX | E24: RG/Órgão Expedidor (LGPD*): | G24: XXXXXXXXX
B25: e-mail: | C25: XXXXXXXXX
B26: Obs.: LGPD - Lei Geral de Proteção de Dados Pessoais, Lei nº 13.709/2018, IPDM - (Índice Ipardes de Desempenho Municipal)
B27: Banco: | C27: XXXXXXXXXX
B28: Agência: | C28: XXXXXXXXXX | E28: Conta Convênio: | F28: XXXXXXXXXX
B30: 2. IDENTIFICAÇÃO DO OBJETO | L30: Este Plano de Trabalho integrará o Termo de Convênio pelo qual os partícipes conjugam esforços para assegurarem as condições de trafegabilidades ao longo do ano dos trechos das estradas rurais identificadas no item 2.2 – Quadro Resumo, mediante a implementação de ações de:
B31: =CONCATENATE(L30,E35,L31) -> Este Plano de Trabalho integrará o Termo de Convênio pelo qual os partícipes conjugam esforços para assegurarem as condições de trafegabilidades ao longo do ano dos trechos das estradas rurais identificadas no item 2.2 – Quadro Resumo, mediante a implementação de ações de: MELHORIAS, de acordo com os princípios das estradas rurais integradas aos sistemas conservacionaistas, para as quais o concedente repassará recursos ao Município, para aquisição de óleo diesel, em consonância com o Plano Paraná Mais Cidades, conforme descrito abaixo: | L31: , de acordo com os princípios das estradas rurais integradas aos sistemas conservacionaistas, para as quais o concedente repassará recursos ao Município, para aquisição de óleo diesel, em consonância com o Plano Paraná Mais Cidades, conforme descrito abaixo:
B35: Tipo de Serviço | E35: MELHORIAS | L35: Tipos de Servíço | M35: Valor
B36: Extensão (m) | E36: ='Plan3 2.2. QUADRO RESUMO'!G23 -> 1000 | L36: ADEQUAÇÃO | M36: 500000
B37: Média Largura (m) | E37: ='Plan3 2.2. QUADRO RESUMO'!I23 -> 7 | L37: READEQUAÇÃO | M37: 500000
B38: Área dos serviços (m²) | E38: ='Plan3 2.2. QUADRO RESUMO'!L23 -> 7000 | L38: MANUTENÇÃO | M38: 500000
L39: MELHORIAS | M39: 500000
B40: Quantidade de óleo diesel (litros) | E40: ='Plan4 2.3. OPERAÇÕES'!Q58 -> 6273.112184
B42: 2.1. Período de Vigência
B44: Início da vigência: | D44: Data da publicação do termo de convênio no DIOE
B45: Término da vigência: | D45: =IF(E36<=2000,24,36) -> 24 | E45: meses após a publicação do termo de convênio no DIOE
B46: Obs.: vigência minimo de 24 meses; DIOE - (DIÁRIO OFICIAL DO ESTADO)
L55: Coluna1 | M55: Coluna2
L56: RECAPE - CBUQ | M56: 2000000
L57: PARALELEPIPEDO | M57: 1680000
L58: PAVER | M58: 1100000
L59: TSS - Tratamento Superficial Simples | M59: 600000
L60: TSD - Tratamento Superficial Duplo | M60: 700000
L61: TST - Tratamento Superficial Triplo | M61: 800000

Sheet Plan3 2.2. QUADRO RESUMO
E2: PLANO DE TRABALHO MELHORIA DA TRAFEGABILIDADE EM ESTRADAS RURAIS MUNICIPAIS ÓLEO DIESEL com base no RTV - Relatório Técnico de Vistoria e Projetos Técnicos
B4: 2.2. Quadro Resumo (Total das Estradas Rurais/trechos indicados nos RTV’s*)
B6: nº | C6: Estrada Rural/ Nome/ Trechos | D6: Coordenadas UTM - SAD-69 | G6: Extensão total(m) | H6: Extensão cascalhamento (m) | I6: Larg. total (m) | J6: Larg. Cascalhamento (m) | K6: Espessura cascalho compactado (m) | L6: Área total (m²) | M6: Área cascalhada(m²)
D7: FUSO | E7: Início Lat./Long. | F7: Término Lat./Long.
B8: 1 | C8: xxx | D8: zz | E8: vvv | F8: bbb | G8: 1000 | H8: 1000 | I8: 7 | J8: 6 | K8: 0.15 | L8: =G8*I8 -> 7000 | M8: =H8*J8 -> 6000
B9: 2 | L9: =G9*I9 -> 0 | M9: =H9*J9 -> 0
B10: 3 | L10: 0 | M10: 0
B11: 4 | L11: 0 | M11: 0
B12: 5 | L12: 0 | M12: 0
B13: 6 | L13: 0 | M13: 0
B14: 7 | L14: 0 | M14: 0
B15: 8 | L15: 0 | M15: 0
B16: 9 | L16: 0 | M16: 0
B17: 10 | L17: 0 | M17: 0
B18: 11 | L18: 0 | M18: 0
B19: 12 | L19: 0 | M19: 0
B20: 13 | L20: 0 | M20: 0
B21: 14 | L21: 0 | M21: 0
B22: 15 | L22: 0 | M22: 0
B23: TOTAL/m. | G23: =SUM(G8:G22) -> 1000 | I23: =AVERAGE(I8:I22) -> 7 | J23: =AVERAGE(J8:J22) -> 6 | K23: =AVERAGE(K8:K22) -> 0.15 | L23: =SUM(L8:L22) -> 7000 | M23: =SUM(M8:M22) -> 6000
B24: TOTAL/Km | G24: =G23/1000 -> 1
B26: *Relatórios Técnico de Vistorias (01 por trecho/estrada rural)

Sheet Plan4 2.3. OPERAÇÕES
D2: PLANO DE TRABALHO MELHORIA DA TRAFEGABILIDADE EM ESTRADAS RURAIS MUNICIPAIS ÓLEO DIESEL com base no RTV - Relatório Técnico de Vistoria e Projetos Técnicos | S2: Contrapartida: | T2: Municipio | U2: IPDM | V2: % DA CONTRAPARTDIDA
T3: ='Plan2 1.DADOS,2.OBJ e 2.1.Vigên'!C18 -> Adrianópolis | U3: =VLOOKUP(T3,Municipios!A:C,2,0) -> 0.6769420531 | V3: =VALUE(VLOOKUP(U3,Municipios!B:D,2,0)) -> 0.05
B5: 2.3. Operações a serem executadas nos trechos ( * Preferencialmente utilizar como referência: Tabelas de custos SEIL/DER/PR). E excepcionalmente SINAPI E DNIT, nos casos de serviços não contemplados pela tabeLa do DER-Pr
B7: Tipo Serviço: | E7: ='Plan2 1.DADOS,2.OBJ e 2.1.Vigên'!E35 -> MELHORIAS | I7: Unid. | J7: Qtd. | K7: Rodovia pavimentada DMT - km | L7: Rodovia não pavimentada DMT - km | M7: MÁQUINA (referência) E OUTROS A UTILIZAR | N7: RENDIMENTO ESPERADO - litros de OD POR HORA | O7: Nº DE HORAS MÁQUINAS E CAMINHÕES/outros | P7: média de consumo L/ HORA | Q7: N° DE LITROS OD | R7: CUSTO ÓLEO DIESEL - ANP EM .../.../202...(R$) e outros custos | T7: SEAB | U7: CONTRAPARTIDA (MUNICÍPIO)²
R8: UNITÁRIO | S8: TOTAL | U8: FINANCEIRA R$ | V8: FÍSICA
B9: Nº | C9: Natureza de despesa | D9: Código DER PR | E9: Itens | T9: R$ | V9: SERVIÇOS | W9: BENS
B10: 01-TERRAPLENAGEM: | N10: =CONCATENATE("SubTotal ",B10) -> SubTotal 01-TERRAPLENAGEM: | Q10: =SUM(Q11:Q26) -> 2748.50425 | S10: =SUM(S11:S26) -> 13770.00629 | T10: =SUM(T11:T26) -> 13081.50598 | U10: =SUM(U11:U26) -> 688.5003145 | V10: =SUM(V11:V26) -> 0 | W10: =SUM(W11:W26) -> 0
B11: 1 | C11: 3.3.90.30.01 | D11: 40115 | E11: Escavação carga e transporte de material de 1ª categoria 0 - 50 m | I11: m³ | J11: 1000 | K11: 0 | L11: 0 | M11: Motoniveladora 120 H | N11: 138.25 | O11: =J11/N11*0.2 -> 1.446654611 | P11: 20.41 | Q11: =O11*P11 -> 29.52622061 | R11: 5.01 | S11: =Q11*R11 -> 147.9263653 | T11: =S11-U11-V11-W11 -> 140.530047 | U11: =S11*$V$3 -> 7.396318264 | V11: 0 | W11: 0
I12: m³ | K12: 0 | L12: 0 | M12: Trator de lâmina D-6 | O12: =J11/N11 -> 7.233273056 | P12: 16.61 | Q12: =O12*P12 -> 120.1446655 | R12: =$R$11 -> 5.01 | S12: =Q12*R12 -> 601.924774 | T12: =S12-U12-V12-W12 -> 571.8285353 | U12: 30.0962387 | V12: 0 | W12: 0
B13: 2 | C13: =$C$11 -> 3.3.90.30.01 | D13: 40102 | E13: Desmatamento e limpeza até Ø 30 cm | I13: m² | J13: 1000 | K13: 0 | L13: 0 | M13: Trator de lâmina D-6 | N13: 463.68 | O13: =J13/N13 -> 2.156659765 | P13: 16.61 | Q13: 35.8221187 | R13: =$R$11 -> 5.01 | S13: 179.4688147 | T13: =S13-U13-V13-W13 -> 170.495374 | U13: 8.973440735 | V13: 0 | W13: 0
B14: 3 | C14: =$C$11 -> 3.3.90.30.01 | D14: 40108 | E14: Lombadas | I14: m³ | J14: 1000 | K14: 0 | L14: 0 | M14: Carregador frontal pneus 924 – G | N14: 110 | O14: =J14/N14 -> 9.090909091 | P14: 15.92 | Q14: 144.7272727 | R14: 5.01 | S14: 725.0836364 | T14: 688.8294545 | U14: 36.25418182 | V14: 0 | W14: 0
B15: 4 | C15: 3.3.90.30.01 | D15: 42110 | E15: Caixa de retenção | I15: m³ | J15: 1000 | K15: 0 | L15: 0 | M15: Retroescavadeira JCB 4x4 | N15: 21.31 | O15: =J15/N15 -> 46.92632567 | P15: 8.5 | Q15: 398.8737682 | R15: 5.01 | S15: 1998.357579 | T15: 1898.4397 | U15: 99.91787893 | V15: 0 | W15: 0
B16: 5 | C16: 3.3.90.30.01 | D16: 401060 | E16: Regularização de leito/patrolamento | I16: m² | J16: 1000 | K16: 0 | L16: 0 | M16: Motoniveladora 120 H | N16: 1742 | O16: =J16/N16 -> 0.5740528129 | P16: 20.41 | Q16: 11.71641791 | R16: 5.01 | S16: 58.69925373 | T16: 55.76429104 | U16: 2.934962687 | V16: 0 | W16: 0
B17: 6 | C17: 3.3.90.30.01 | D17: 51103 | E17: Regularização, conformação e compactação visual do leito | I17: m² | J17: 1000 | K17: 0 | L17: 0 | M17: Motoniveladora 120 H | N17: 688.54 | O17: =J17/N17*0.34 -> 0.4937984721 | P17: 20.41 | Q17: 10.07842682 | R17: 5.01 | S17: 50.49291835 | T17: 47.96827243 | U17: 2.524645917 | V17: 0 | W17: 0
C18: 3.3.90.30.01 | K18: 0 | L18: 0 | M18: Rolo compactador CA - 25 | O18: =J17/N17 -> 1.452348447 | P18: 11.59 | Q18: 16.83271851 | R18: 5.01 | S18: 84.33191971 | T18: 80.11532373 | U18: 4.216595986 | V18: 0 | W18: 0
B19: 7 | C19: 3.3.90.30.01 | D19: 40107 | E19: Retaludamento | I19: m² | J19: 1000 | K19: 0 | L19: 0 | M19: Motoniveladora 120 H | N19: 650 | O19: =J19/N19 -> 1.538461538 | P19: 20.41 | Q19: 31.4 | R19: 5.01 | S19: 157.314 | T19: 149.4483 | U19: 7.8657 | V19: 0 | W19: 0
B20: 8 | C20: 3.3.90.30.01 | D20: 40113 | E20: Escavação para saída de água | I20: m³ | J20: 1000 | K20: 0 | L20: 0 | M20: Retroescavadeira JCB 4x4 | N20: 37.3 | O20: =J20/N20 -> 26.80965147 | P20: 8.5 | Q20: 227.8820375 | R20: 5.01 | S20: 1141.689008 | T20: 1084.604558 | U20: 57.0844504 | V20: 0 | W20: 0
B21: 9 | C21: 3.3.90.30.01 | D21: 40101 | E21: Destocamento árvores Ø > 30cm | I21: unidade | J21: 1000 | K21: 0 | L21: 0 | M21: Trator de lâmina D-6 | N21: 12 | O21: 83.33333333 | P21: 16.61 | Q21: 1384.166667 | R21: 5.01 | S21: 6934.675 | T21: 6587.94125 | U21: 346.73375 | V21: 0 | W21: 0
B22: 10 | C22: 3.3.90.30.01 | D22: 40115 | E22: Bigodes/Sangradouros | I22: m³ | J22: 1000 | K22: 0 | L22: 0 | M22: Motoniveladora 120 H | N22: 138.25 | O22: =J22/N22*0.2 -> 1.446654611 | P22: 20.41 | Q22: 29.52622061 | R22: 5.01 | S22: 147.9263653 | T22: 140.530047 | U22: 7.396318264 | V22: 0 | W22: 0
C23: 3.3.90.30.01 | K23: 0 | L23: 0 | M23: Trator de lâmina D-6 | O23: =J22/N22 -> 7.233273056 | P23: 16.61 | Q23: 120.1446655 | R23: 5.01 | S23: 601.924774 | T23: 571.8285353 | U23: 30.0962387 | V23: 0 | W23: 0
B24: 11 | C24: 3.3.90.30.01 | D24: OPÇÃO 2 PÁ | E24: Bigodes/Sangradouros | I24: m³ | J24: 1000 | K24: 0 | L24: 0 | M24: Carregador frontal pneus 924 – G | N24: 110 | O24: =J24/N24 -> 9.090909091 | P24: 15.92 | Q24: 144.7272727 | R24: 5.01 | S24: 725.0836364 | T24: 688.8294545 | U24: 36.25418182 | V24: 0 | W24: 0
B25: 12 | C25: 3.3.90.30.01 | D25: 51113 | E25: Escarificação, conformação e compactação do subleito | I25: m² | J25: 1000 | K25: 0 | L25: 0 | M25: Motoniveladora 120 H | N25: 417.3 | O25: =(J25/N25)*0.31 -> 0.7428708363 | P25: 20.41 | Q25: 15.16199377 | R25: 5.01 | S25: 75.96158879 | T25: 72.16350935 | U25: 3.798079439 | V25: 0 | W25: 0
C26: 3.3.90.30.01 | K26: 0 | L26: 0 | M26: Rolo compactador CA - 25 | O26: =J25/N25 -> 2.396357537 | P26: 11.59 | Q26: 27.77378385 | R26: 5.01 | S26: 139.1466571 | T26: 132.1893242 | U26: 6.957332854 | V26: 0 | W26: 0
B27: 02-DRENAGEM: | N27: =CONCATENATE("SubTotal ",B27) -> SubTotal 02-DRENAGEM: | Q27: =SUM(Q28:Q42) -> 2247.413905 | S27: =SUM(S28:S42) -> 39585.23076 | T27: =SUM(T28:T42) -> 37605.96922 | U27: =SUM(U28:U42) -> 1979.261538 | V27: =SUM(V28:V42) -> 0 | W27: =SUM(W28:W42) -> 0
B28: 13 | C28: =$C$11 -> 3.3.90.30.01 | D28: 60760 | E28: Assentamento de tubos 0,30 m sem berço | I28: m | J28: 100 | K28: 0 | L28: 0 | M28: Retroescavadeira JCB 4x4 | N28: 10 | O28: =J28/N28 -> 10 | P28: 8.5 | Q28: 85 | R28: =$R$11 -> 5.01 | S28: =Q28*R28 -> 425.85 | T28: 404.5575 | U28: =S28*$V$3 -> 21.2925 | V28: 0 | W28: 0
B29: 14 | C29: 3.3.90.30.01 | D29: 60301 | E29: Assentamento de tubos 0,40 m sem berço | I29: m | J29: 100 | K29: 0 | L29: 0 | M29: Retroescavadeira JCB 4x4 | N29: 10 | O29: =J29/N29 -> 10 | P29: 8.5 | Q29: 85 | R29: 5.01 | S29: 425.85 | T29: 404.5575 | U29: 21.2925 | V29: 0 | W29: 0
B30: 15 | C30: 3.3.90.30.01 | D30: 60302 | E30: Assentamento de tubos 0,60 m sem berço | I30: m | J30: 100 | K30: 0 | L30: 0 | M30: Retroescavadeira JCB 4x4 | N30: 6 | O30: 16.66666667 | P30: 8.5 | Q30: 141.6666667 | R30: 5.01 | S30: 709.75 | T30: 674.2625 | U30: 35.4875 | V30: 0 | W30: 0
B31: 16 | C31: 3.3.90.30.01 | D31: 60304 | E31: Assentamento de tubos 0,80 m sem berço | I31: m | J31: 100 | K31: 0 | L31: 0 | M31: Retroescavadeira JCB 4x4 | N31: 4 | O31: 25 | P31: 8.5 | Q31: 212.5 | R31: 5.01 | S31: 1064.625 | T31: 1011.39375 | U31: 53.23125 | V31: 0 | W31: 0
B32: 17 | C32: 3.3.90.30.01 | D32: 61100 | E32: Assentamento de tubos 1,00 m sem berço | I32: m | J32: 100 | K32: 0 | L32: 0 | M32: Escav.Hidr. EC – 140 | N32: 4 | O32: 25 | P32: 14 | Q32: 350 | R32: 5.01 | S32: 1753.5 | T32: 1665.825 | U32: 87.675 | V32: 0 | W32: 0
B33: 18 | C33: 3.3.90.30.01 | D33: 60110 | E33: Apiloamento manual | I33: m³ | J33: =J28*0.93+J29*0.974+J30*1.407+J31*2.197+J32*2.615 -> 812.3 | K33: 0 | L33: 0 | M33: Um e meio homem | N33: 1.55 | O33: 524.0645161 | Q33: 0 | R33: 54.05 | S33: =O33*R33 -> 28325.6871 | T33: 26909.40274 | U33: 1416.284355 | V33: 0 | W33: 0
B34: 19 | C34: 3.3.90.30.01 | D34: 60760 | E34: Assentamento de tubos 0,30 m sem berço - Transporte - peso unitário -0,097ton. | I34: ton. | J34: =TRUNC(J28*0.097,2) -> 9.7 | K34: 10 | L34: 10 | M34: CAMINHÃO BASCULANTE - 10,00 m³ ou 15,00 ton. | N34: =J34/O34 -> 15 | O34: =((J34/15)*(K34+L34))/20 -> 0.6466666667 | P34: 15 | Q34: 9.7 | R34: 5.01 | S34: 48.597 | T34: 46.16715 | U34: 2.42985 | V34: 0 | W34: 0
B35: 20 | C35: 3.3.90.30.01 | D35: 60301 | E35: Assentamento de tubos 0,40 m sem berço - Transporte - peso unitário -0,110ton. | I35: ton. | J35: =TRUNC(J29*0.11,2) -> 11 | K35: 10 | L35: 10 | M35: CAMINHÃO BASCULANTE - 10,00 m³ ou 15,00 ton. | N35: =J35/O35 -> 15 | O35: =((J35/15)*(K35+L35))/20 -> 0.7333333333 | P35: 15 | Q35: 11 | R35: 5.01 | S35: 55.11 | T35: 52.3545 | U35: 2.7555 | V35: 0 | W35: 0
B36: 21 | C36: 3.3.90.30.01 | D36: 60302 | E36: Assentamento de tubos 0,60 m sem berço - Transporte - peso unitário - 0,390 ton. | I36: ton. | J36: =TRUNC(J30*0.39,2) -> 39 | K36: 10 | L36: 10 | M36: CAMINHÃO BASCULANTE - 10,00 m³ ou 15,00 ton. | N36: 15 | O36: 2.6 | P36: 15 | Q36: 39 | R36: 5.01 | S36: 195.39 | T36: 185.6205 | U36: 9.7695 | V36: 0 | W36: 0
B37: 22 | C37: 3.3.90.30.01 | D37: 60304 | E37: Assentamento de tubos 0,80 m sem berço - Transporte - peso unitário - 0,670 ton. | I37: ton. | J37: =TRUNC(J31*0.67,2) -> 67 | K37: 10 | L37: 10 | M37: CAMINHÃO BASCULANTE - 10,00 m³ ou 15,00 ton. | N37: 15 | O37: 4.466666667 | P37: 15 | Q37: 67 | R37: 5.01 | S37: 335.67 | T37: 318.8865 | U37: 16.7835 | V37: 0 | W37: 0
B38: 23 | C38: 3.3.90.30.01 | D38: 61100 | E38: Assentamento de tubos 1,00 m sem berço - Transporte - peso unitário - 1,000ton. | I38: ton. | J38: =TRUNC(J32*1,2) -> 100 | K38: 10 | L38: 10 | M38: CAMINHÃO BASCULANTE - 10,00 m³ ou 15,00 ton. | N38: 15 | O38: 6.666666667 | P38: 15 | Q38: 100 | R38: 5.01 | S38: 501 | T38: 475.95 | U38: 25.05 | V38: 0 | W38: 0
B39: 24 | C39: 3.3.90.30.01 | D39: 40114 | E39: Escavação de vala lateral rasa com motoniveladora | I39: m | J39: 2000 | K39: 0 | L39: 0 | M39: Motoniveladora 120 H | N39: 735 | O39: =J39/N39 -> 2.721088435 | P39: 20.41 | Q39: 55.53741497 | R39: 5.01 | S39: 278.242449 | T39: 264.3303265 | U39: 13.91212245 | V39: 0 | W39: 0
B40: 25 | C40: 3.3.90.30.01 | D40: 60303 | E40: Escavação de bueiros e valas de drenagem 1a. cat. | I40: m³ | J40: =(J28*1+J29*1.1+J30*1.69+J31*2.7+J32*3.4) -> 989 | K40: 0 | L40: 0 | M40: Escav.Hidr. CX – 210 | N40: 27.74 | O40: 35.65248738 | P40: 14 | Q40: 499.1348234 | R40: 5.01 | S40: 2500.665465 | T40: 2375.632192 | U40: 125.0332733 | V40: 0 | W40: 0
B41: 26 | C41: 3.3.90.30.01 | D41: 60370 | E41: Enrocamento pedra de mão arrumada | I41: m³ | J41: =J28*0.2117+J29*0.2577+J30*0.3549+J31*0.6884+J32*0.8548 -> 236.75 | K41: 0 | L41: 0 | M41: Dois homens | N41: 1 | O41: 236.75 | Q41: 0 | R41: 5.01 | S41: 0 | T41: 0 | U41: 0 | V41: 0 | W41: 0
B42: 27 | C42: 3.3.90.30.01 | D42: 97230 | E42: Enrocamento pedra de mão arrumada - transporte | I42: ton. | J42: =J41*1.98 -> 468.765 | K42: 10 | L42: 10 | M42: CAMINHÃO BASCULANTE - 10,00 m³ ou 15,00 ton. | N42: =J42/O42 -> 11.88 | O42: =((J42/11.88)*(K42+L42))/20 -> 39.45833333 | P42: 15 | Q42: 591.875 | R42: 5.01 | S42: 2965.29375 | T42: 2817.029062 | U42: 148.2646875 | V42: 0 | W42: 0
B43: 03-CASCALHAMENTO E ATERROS: | N43: =CONCATENATE("SubTotal ",B43) -> SubTotal 03-CASCALHAMENTO E ATERROS: | Q43: =SUM(Q44:Q57) -> 1277.19403 | S43: =SUM(S44:S48) -> 8612.74209 | T43: =SUM(T44:T48) -> 8182.104985 | U43: 430.6371045 | V43: 0 | W43: 0
B44: 28 | C44: =$C$11 -> 3.3.90.30.01 | D44: 45201 | E44: Cascalhamento - (corte, carregamento, espalhamento e compactação)+aterros | I44: m³ | J44: =1000*6*0.15 -> 900 | K44: 0 | L44: 0 | M44: ESCAVADEIRA HIDRÁULICA | N44: 107.2 | O44: =J44/N44 -> 8.395522388 | P44: 14 | Q44: 117.5373134 | R44: =$R$11 -> 5.01 | S44: 588.8619403 | T44: 559.4188433 | U44: =S44*$V$3 -> 29.44309701 | V44: 0 | W44: 0
C45: 3.3.90.30.01 | K45: 0 | L45: 0 | M45: MOTONIVELADORA | O45: =J44/N44 -> 8.395522388 | P45: 20.41 | Q45: 171.3526119 | R45: 5.01 | S45: 858.4765858 | T45: 815.5527565 | U45: =S45*$V$3 -> 42.92382929 | V45: 0 | W45: 0
C46: 3.3.90.30.01 | K46: 0 | L46: 0 | M46: ROLO COMPACTADOR | O46: =J44/N44 -> 8.395522388 | P46: 11.59 | Q46: 97.30410448 | R46: 5.01 | S46: 487.4935634 | T46: 463.1188853 | U46: =S46*$V$3 -> 24.37467817 | V46: 0 | W46: 0
B47: 29 | C47: 3.3.90.30.01 | D47: 97210 | E47: Transporte do cascalho e/ou material para aterro ( se o material para aterro for de outro local deve ser calculado em separado) | I47: TONELADAS | J47: =J44*1.98 -> 1782 | K47: 10 | L47: 10 | M47: CAMINHÃO BASCULANTE - 10,00 m³ ou 15,00 ton. | N47: =J47/O47 -> 30 | O47: =((J47/15)*(K47+L47))/40 -> 59.4 | P47: 15 | Q47: 891 | R47: 5.01 | S47: 4463.91 | T47: 4240.7145 | U47: =S47*$V$3 -> 223.1955 | V47: 0 | W47: 0
B48: 30 | C48: 3.3.90.30.01 | D48: 130130 | E48: Royalts JAZIDA | I48: m³ | J48: =J44 -> 900 | K48: 0 | L48: 0 | M48: 0 | N48: 0 | O48: 0 | P48: 0 | Q48: 0 | R48: 2.46 | S48: =J48*R48 -> 2214 | T48: 2103.3 | U48: =S48*$V$3 -> 110.7 | V48: 0 | W48: 0
B49: 04-IDENTIFICAÇÃO DA OBRA | N49: =CONCATENATE("SubTotal ",B49) -> SubTotal 04-IDENTIFICAÇÃO DA OBRA | S49: =S50+S51 -> 2775.73 | T49: =S49-U49-V49-W49 -> 2636.9435 | U49: =S49*$V$3 -> 138.7865 | V49: 0 | W49: 0
B50: 31 | C50: 3.3.90.30.01.00 | D50: 821000 | E50: Suporte de madeira 3"x3" p/ placa sinalização, h=3,00m | I50: ud | J50: 2 | K50: 0 | L50: 0 | M50: 0 | N50: 0 | O50: 0 | P50: 0 | Q50: 0 | R50: 167.69 | S50: =J50*R50 -> 335.38 | T50: 318.611 | U50: 16.769 | V50: 0 | W50: 0
B51: 32 | C51: 3.3.90.30.01.00 | D51: 820000 | E51: Placa sinalização c/ película refletiva 1,50x3,00 m | I51: m² | J51: 4.5 | K51: 0 | L51: 0 | M51: 0 | N51: 0 | O51: 0 | P51: 0 | Q51: 0 | R51: 542.3 | S51: =J51*R51 -> 2440.35 | T51: 2318.3325 | U51: 122.0175 | V51: 0 | W51: 0
B52: 05-TOPOGRAFIA | N52: =CONCATENATE("SubTotal ",B52) -> SubTotal 05-TOPOGRAFIA | S52: =S53 -> 1940 | T52: 1843 | U52: 97 | V52: 0 | W52: 0
B53: 33 | C53: 3.3.90.30.01.00 | D53: Orçar/ metodologia AETESP e NBR 13.133 | E53: Levantamento topográfico planialtimétrico, visando a medição dos serviços de terraplenagem, drenagem e cascalhamentos previstos em projeto e executados (Detalhar as especificações técnicas) | I53: m | J53: 1000 | K53: 0 | L53: 0 | M53: 0 | N53: 0 | O53: 0 | P53: 0 | Q53: 0 | R53: 1.94 | S53: =J53*R53 -> 1940 | T53: 1843 | U53: 97 | V53: 0 | W53: 0
B54: SUBTOTAL - ITENS (01,02,03,04,05) | S54: =S27+S43+S49+S52 -> 52913.70285 | T54: =T27+T43+T49+T52 -> 50268.01771 | U54: 2645.685143 | V54: 0 | W54: 0
B55: 06 - Mobilização e melhoria ambiental | N55: =CONCATENATE("SubTotal ",B55) -> SubTotal 06 - Mobilização e melhoria ambiental | S55: =S56+S57 -> 3703.9592 | T55: =S55-U55-V55-W55 -> 3518.76124 | U55: =S55*$V$3 -> 185.19796 | V55: 0 | W55: 0
B56: 34 | C56: 3.3.90.30.01.00 | D56: Deliberação nº 179/2013-CD/DER | E56: Mobilização/ Desmobilização - Obs.: percentual utilizado é variavel aplicado em cima do subtotal ITENS (01,02,03,04,05) informar o percentual utilizado- ...% | I56: % | J56: 0.04 | K56: 0 | L56: 0 | M56: 0 | N56: 0 | O56: 0 | P56: 0 | Q56: 0 | R56: 0 | S56: =$S$54*J56 -> 2116.548114 | T56: =S56-U56-V56-W56 -> 2010.720708 | U56: =S56*$V$3 -> 105.8274057 | V56: 0 | W56: 0
B57: 35 | C57: 3.3.90.30.01.00 | D57: Deliberação nº 179/2013-CD/DER | E57: Melhoria ambiental - recuperação de cascalheiras percentual aplicado em cima do subtotal ITENS (01,02,03,04,05) o percentual é fixo, ou seja, 3% (apresentar orçamento no que será aplicado) | I57: % | J57: 0.03 | K57: 0 | L57: 0 | M57: 0 | N57: 0 | O57: 0 | P57: 0 | Q57: 0 | R57: 0 | S57: =$S$54*J57 -> 1587.411086 | T57: =S57-U57-V57-W57 -> 1508.040531 | U57: =S57*$V$3 -> 79.37055428 | V57: 0 | W57: 0
B58: TOTAIS - GERAL | Q58: =Q10+Q27+Q43 -> 6273.112184 | S58: =S54+S55 -> 56617.66205 | T58: =T54+T55 -> 53786.77895 | U58: =U54+U55 -> 2830.883102 | V58: =V54+V55 -> 0 | W58: =W54+W55 -> 0
B59: Obs.:
B60: 1 - Os quantitativos foram levandados a partir de projetos técnicos especificos para adequação e ou readequação ou através de metodologia expedita RTV - Relatório Técnico de Vistoria, nos casos de manutenções e ou pequenas melhorias ; 2 - As operações previstas neste plano de trabalho foram extraidas do orçamento do projeto , parte integrande deste plano de trabalho 3 - Apresentar memoria de cálculos do TRANSPORTE, melhorias ambientais e da CONTRAPARTIDA FISICA/SERVIÇOS. 4 - Ex . cod. de orçamento: Obra de Pavimentação de Estrada Rural. 4490.51.04 – Obras e Instalações (51) – Obras Rodoviárias de Domínio Público (04). 5 - Quando o municipio participar com contrapartida fisica não existe natureza de despesa. Deverá apresentar os memoriais de calculos e qual sera o serviço e/ou bem. 6 - Não cabe aplicação de BDI no caso de repasse de recursos para a aquisição de óleo diesel.
C62: Valor Global | E62: SEAB | G62: Contrapartida Município
C63: % | D63: (R$) | E63: % | F63: Total (R$) | G63: % | H63: FINANCEIRA R$ | I63: FÍSICA
I64: SERVIÇOS | J64: BENS
C65: 1 | D65: =S58 -> 56617.66205 | E65: =F65/D65 -> 0.95 | F65: =T58 -> 53786.77895 | G65: =(H65+I65+J65)/D65 -> 0.05 | H65: =U58 -> 2830.883102 | I65: =V58 -> 0 | J65: =W58 -> 0
B68: [1] O valor unitário deverá ter sido obtido por meio de orçamento devidamente detalhado em planilhas nos termos dos arts. 368 a 372 e dos arts. 484 a 486 do Decreto Estadual 10.086/2022
B69: [2] Art. 669, § 1º. I, II e III, estipulou percentuais fixados de acordo com a capacidade financeira do convenente, com base nos dados do IPARDES

Sheet Plan5 3. JUSTIFIC. e 4.BENEFIC.
D2: PLANO DE TRABALHO MELHORIA DA TRAFEGABILIDADE EM ESTRADAS RURAIS MUNICIPAIS ÓLEO DIESEL com base no RTV - Relatório Técnico de Vistoria e Projetos Técnicos
B4: 3. RAZÕES PARA CELEBRAÇÃO - JUSTIFICATIVA
B7: 1. Discorrer as razões que justificam a celebração do instrumento, caracterizando (evidenciando) e indicando, entre outras: a) interesses recíprocos entre a Seab e o Município, e o atendimento da(s) necessidade (s) da comunidade (s) a serem benficiadas; b) relação entre a projeto técnico apresentado, operações a serem executadas e objetivos do plano, programa, projeto ou proposta estadual ou municipal; c) qualificação do público alvo; d) problemas a serem resolvidos; e) resultados esperados; f) Índice Desempenho Municipal (IDM/Ipardes) ou IDH - posição do Município em relação à média do Estado, ...; g) VBP - Principais produtos, posição do Município em relação à média do Estado, ...; h) Proporção de agricultores familiares em relação ao total de produtores/agricultores do município; i) Famílias do meio rural abaixo da linha de pobreza e/ou inscritas no CadUnico; j) Estrutura fundiário do município; k)Outras informações relevantes. 2. Justificar a relação entre custos e beneficios, do desembolso a ser realizado pela Administração em decorrência do convênio;
B9: 4. BENEFICIÁRIOS
B11: Nome da(s) comunidade(s) | E11: Quantidade Usuários ( *)
E12: Diretos | F12: Indiretos
G13: =IF(B13<>"",1,0) -> 0
G14: 0
G15: 0
G16: 0
G17: 0
G18: 0
G19: 0
G20: 0
G21: 0
G22: 0
G23: 0
G24: 0
G25: 0
G26: 0
G27: 0
G28: 0
B29: Total de Comunidades: | E29: =SUM(G13:G28) -> 0
B30: Subtotais - usuários | E30: =SUM(E13:E28) -> 0 | F30: =SUM(F13:F28) -> 0
B31: Total geral de usuários | E31: =E30+F30 -> 0
B32: (*) Os beneficiários diretos são o público-alvo definido, os quais o projeto terá um impacto social direto. Beneficiários indiretos recebem impactos positivos do projeto.

Sheet Plan 6 5. METAS e 6.ETAPAS
D2: PLANO DE TRABALHO MELHORIA DA TRAFEGABILIDADE EM ESTRADAS RURAIS MUNICIPAIS ÓLEO DIESEL com base no RTV - Relatório Técnico de Vistoria e Projetos Técnicos
B4: 5. DEFINIÇÃO E DETALHAMENTO DAS METAS:
B6: Meta | C6: Natureza Despesa | D6: Descrição | E6: Duração | G6: Indicador Físico | I6: Custo (R$)
E7: Início | F7: Término | G7: Área | H7: Unid. | I7: Unit./m² | J7: Unit./km | K7: Total (R$)
B8: 1 | C8: 4.4.90.51.00 | D8: Aquisição de serviços para a execução do objeto | E8: A partir da Publicação no DIOE | F8: =CONCATENATE('Plan2 1.DADOS,2.OBJ e 2.1.Vigên'!D45," ","meses a partir da publicação no DIOE") -> 24 meses a partir da publicação no DIOE | G8: ='Plan3 2.2. QUADRO RESUMO'!M23 -> 6000 | H8: m² | I8: =K8/G8 -> 9.436277008 | J8: =K8/'Plan3 2.2. QUADRO RESUMO'!G23*1000 -> 56617.66205 | K8: ='Plan4 2.3. OPERAÇÕES'!D65 -> 56617.66205
B11: 6. ETAPAS DE EXECUÇÃO - (Metodologia)
B13: Fases | C13: Especificação | G13: Responsável | J13: Parâmetro de aferição
B14: 1 | C14: Processo de licitação concluído | G14: Município | J14: Homologação da licitação disponibilizada no SIT/TCE
C15: Repasse dos recursos | G15: SEAB | J15: Nota de liquidação
B16: 2 | C16: Contrato de fornecimento formalizado | G16: Município | J16: Contrato assinado com a empresa vencedora e publicação em diário oficial. Abertura da CNO
B17: 3 | C17: Execução dos serviços, de acordo com as operações definidas na tabela 2.3. | G17: Município | J17: Mapas de medições e relatórios fotográficos e filmagens da execução, de acordo com o cronograma de execução (Quadro 9) .
B18: 4 | C18: Fiscalização do convênio | G18: SEAB | J18: TAF - Termos de Acompanhamento e fiscalização, relatórios bimestrais de execução, possiveis notificações, relatórios fotográficos e filmagens. Preenchimento dos dados no SIT/TCE.
B19: 5 | C19: Executar as ações previstas no RTV emitido pelo IDR-PR | G19: Município | J19: Relatórios de execução e relatórios fotográficos e filmagens.
B20: 6 | C20: Fiscalizar a execução das ações previstas no RTV | G20: SEAB | J20: Atestar, por meio de laudo, que os serviços previsto no RTV - Relatório Técnico de Vistoria foram executados. Preenchimento dos dados no SIT/TCE.
B21: 7 | C21: Execução do Empreendimento | G21: Empresa Contratada | J21: Executar os serviços e entregar os materiais nos prazos, conforme pactuado em contrato com o municipio, por meio dos relatórios de medições dos serviços.
C22: Trechos (completo) | E22: Inicio - (m) | F22: Fim - (m)
B23: 7.1 | C23: Trecho 1.1 | E23: 0 | F23: 1000
B24: 7.2 | C24: Trecho 1.2 | E24: 1001 | F24: 2000
B25: 7.3 | C25: Trecho 1.3 | E25: 2001 | F25: 3000
B26: 7.4 | C26: Trecho 2.1 | E26: 0 | F26: 1000
B27: 7.4 | C27: Trecho 2.2 | E27: 1001 | F27: 2000
B28: 7.6 | C28: Trecho 2.3 | E28: 2001 | F28: 3000
B29: 8 | C29: Prestação de contas parcial e ou final | G29: Município | J29: Relatório de execução fisica, financeira e relatório contábil;
B30: 9 | C30: Conclusão dos objetivos | G30: SEAB | J30: Emissão do Certificado de Conclusão do Objeto
B31: x | C31: ...................
B32: x | C32: ...................

Sheet Plan7 7. PLA DE APL 8 Cap Int.
C2: PLANO DE TRABALHO MELHORIA DA TRAFEGABILIDADE EM ESTRADAS RURAIS MUNICIPAIS ÓLEO DIESEL com base no RTV - Relatório Técnico de Vistoria e Projetos Técnicos
B4: 7 - PLANO DE APLICAÇÃO DOS RECURSOS FINANCEIROS
B6: RESUMO DAS METAS | L6: Pavimentação | M6: Valor Base:
B7: Valor Global | C7: SEAB | E7: Contrapartida Município | L7: ='Plan2 1.DADOS,2.OBJ e 2.1.Vigên'!E35 -> MELHORIAS | M7: =VLOOKUP(L7,'Plan2 1.DADOS,2.OBJ e 2.1.Vigên'!#REF!,2,0) -> 
C8: (R$) | E8: Financeira (R$) | F8: Fisica (R$) | G8: Total (R$)
B9: ='Plan4 2.3. OPERAÇÕES'!D65 -> 56617.66205 | C9: ='Plan4 2.3. OPERAÇÕES'!F65 -> 53786.77895 | E9: ='Plan4 2.3. OPERAÇÕES'!H65 -> 2830.883102 | F9: ='Plan4 2.3. OPERAÇÕES'!I65+'Plan4 2.3. OPERAÇÕES'!J65 -> 0 | G9: =E9+F9 -> 2830.883102
B13: Quantidade de parcelas: | C13: Valor da Parcela
C14: SEAB | E14: Contrapartida Município
E15: Financeira (R$) | F15: Fisica (R$) | G15: Total (R$)
E16: =ROUNDDOWN(E9/$B$18,2) ->  | F16: =F9/$B$18 ->  | G16: =G9/$B$18 -> 
B18: =IF(C9<=M7,2,IF((C9/M7)>4,4,IF(D18>0,ROUND($C$18,0)+1,C18))) ->  | C18: =ROUNDDOWN(C9/M7,0) ->  | D18: =MOD(C9,M7) ->  | E18: Sobra
B20: Parcelas (R$) | C20: Número de Parcelas | D20: Valores (R$)
D21: SEAB | E21: Município | H21: Total Geral
E22: Financeira (R$) | F22: Fisica (R$) | G22: Total (R$)
C23: 1 | D23: =C9 -> 53786.77895 | E23: =E9 -> 2830.883102 | F23: =F9 -> 0 | G23: =IF(F23="","",E23+F23) -> 2830.883102 | H23: =IF(G23="","",D23+G23) -> 56617.66205
C24: 2 | D24: 0 | E24: 0 | F24: 0 | G24: =IF(F24="","",E24+F24) -> 0 | H24: =IF(G24="","",D24+G24) -> 0
C25: 3 | D25: 0 | E25: 0 | F25: 0 | G25: =IF(F25="","",E25+F25) -> 0 | H25: =IF(G25="","",D25+G25) -> 0
C26: 4 | D26: 0 | E26: 0 | F26: 0 | G26: =IF(F26="","",E26+F26) -> 0 | H26: =IF(G26="","",D26+G26) -> 0
C27: Total | D27: =SUM(D23:D26) -> 53786.77895 | E27: =SUM(E23:E26) -> 2830.883102 | F27: =SUM(F23:F26) -> 0 | G27: =SUM(G23:G26) -> 2830.883102 | H27: =SUM(H23:H26) -> 56617.66205
B29: 8. CAPACIDADE INSTALADA DO MUNICÍPIO
B30: a) Descrever , detalhamento, a composição e formação da equipe técnica e operacional envolvida na execução do objeto, bem como os equipamentos (máquinas, veículos e etc...) disponíveis para tal. Informar se as máquinas e caminhões elencado irão traalhar de forma continua ou não, evitando paralisações ou inexecução dos serviços dentro do cronograma. Preencher o quadro 8.1 Resumo da CAPACIDADE INSTALADA b) Descrever, detalhadamente, a forma e frequência do acompanhamento e fiscalização da execução das metas do pactuado através dos Responsáveis Técnicos do municipio (obrigatório ser servidor publico), disponibilidade de hardware, software e veiculos.
B39: 8.1 - Resumo da CAPACIDADE INSTALADA
B40: Máquinas/Veículos | E40: Operador/Motorista | G40: Técnicos
B41: Qtde. | C41: Tipo | D41: Estado de conservação | E41: Qtde | F41: Descrição | G41: Qtde. | H41: Descrição
C42: Caminhão Basculante | F42: Operador de máquinas pesadas | H42: Eng. Civil
C43: Caminhão Prancha | F43: Motorista de caminhão | H43: Eng. Agrônomo
C44: Caminhão comboio | F44: Motorista de veículos de apoio | H44: Topógrafo
C45: Escavadeira hidráulica | F45: Mecânico | H45: Técnico Agrimensor/Agrícola
C46: Motoniveladora
C47: Pá carregadeira
C48: Retroescavadeira
C49: Rolo compactador
C50: Trator de esteira
C51: veiculo para a equipe técnica

Sheet Plan8 9.PREVISÃO e10 CRONOGRAM
C2: PLANO DE TRABALHO MELHORIA DA TRAFEGABILIDADE EM ESTRADAS RURAIS MUNICIPAIS ÓLEO DIESEL com base no RTV - Relatório Técnico de Vistoria e Projetos Técnicos
B3: 9 - CRONOGRAMA DE EXECUÇÃO
C6: Atividades | F6: Período de Execução
F7: Início | I7: Final
C8: Licitação | F8: A partir da publicação no DIOE | I8: até 03 meses após a publicação
C9: Contratação | F9: XX meses após a publicação | I9: XX meses após a publicação
C10: Fiscalização | F10: XX meses após a publicação | I10: XX meses após a publicação
C11: ='Plan 6 5. METAS e 6.ETAPAS'!C23:D23 -> Trecho 1.1 | F11: XX meses após a publicação | I11: XX meses após a publicação
C12: ='Plan 6 5. METAS e 6.ETAPAS'!C24:D24 -> Trecho 1.2 | F12: XX meses após a publicação | I12: XX meses após a publicação
C13: ='Plan 6 5. METAS e 6.ETAPAS'!C25:D25 -> Trecho 1.3 | F13: XX meses após a publicação | I13: XX meses após a publicação
C14: ='Plan 6 5. METAS e 6.ETAPAS'!C26:D26 -> Trecho 2.1 | F14: XX meses após a publicação | I14: XX meses após a publicação
C15: ='Plan 6 5. METAS e 6.ETAPAS'!C27:D27 -> Trecho 2.2 | F15: XX meses após a publicação | I15: XX meses após a publicação
C16: ='Plan 6 5. METAS e 6.ETAPAS'!C28:D28 -> Trecho 2.3 | F16: XX meses após a publicação | I16: XX meses após a publicação
C17: ='Plan 6 5. METAS e 6.ETAPAS'!C29:D29 -> Prestação de contas parcial e ou final | F17: XX meses após a publicação | I17: XX meses após a publicação
C18: ='Plan 6 5. METAS e 6.ETAPAS'!C30:D30 -> Conclusão dos objetivos | F18: XX meses após a publicação | I18: XX meses após a publicação
B19: Todas as atividades serão objeto de fiscalização da SEAB/DEAGRO E MUNICIPIO
B20: Para efeito de comprovação de execução parcial e/ou total da obra junto à fiscalização da SEAB/DEAGRO, será considerado o parâmetro de 300 a 500 metros por mês (1.000 metros / trimestre), efetivamento concluida todas as operações pactuadas.
B22: 10 - CRONOGRAMA DE DESEMBOLSO
B24: Metas | C24: Parcelas (R$)
B25: Prazo | C25: A partir da conclusão do processo de licitação | F25: ....meses | I25: ... meses | L25: ... meses
B26: SEAB | C26: ='Plan7 7. PLA DE APL 8 Cap Int.'!D23 -> 53786.77895 | F26: ='Plan7 7. PLA DE APL 8 Cap Int.'!D24 -> 0 | I26: ='Plan7 7. PLA DE APL 8 Cap Int.'!D25 -> 0 | L26: ='Plan7 7. PLA DE APL 8 Cap Int.'!D26 -> 0
B27: Município | C27: ='Plan7 7. PLA DE APL 8 Cap Int.'!E23 -> 2830.883102 | F27: ='Plan7 7. PLA DE APL 8 Cap Int.'!E24 -> 0 | I27: ='Plan7 7. PLA DE APL 8 Cap Int.'!E25 -> 0 | L27: ='Plan7 7. PLA DE APL 8 Cap Int.'!G26 -> 0

Sheet Plan 09.11MONIT_AVALIA_P.CONTAS
C2: PLANO DE TRABALHO MELHORIA DA TRAFEGABILIDADE EM ESTRADAS RURAIS MUNICIPAIS ÓLEO DIESEL com base no RTV - Relatório Técnico de Vistoria e Projetos Técnicos
B4: 11. OBRIGAÇÕES
B5: DO MONITORAMENTO, AVALIAÇÃO E DA PRESTAÇÃO DE CONTAS
B6: 1. O CONVENENTE TOMADOR realizará a prestação de contas através do Sistema Integrado de Transferências do TCE (SIT) conforme previsões das resoluções nº 28/2011, 46/2014 e a Instrução Normativa 61/2011 e as Cláusulas do Convênio
B7: 2. Cópia de ata da homologação do processo licitatório, contrato, CNO - Cadastro Nacional de Obras, licença ambiental do fornecedor ( pedreira) do material a ser utilizado na pavimentação.
B8: 3. O CONVENENTE TOMADOR, apresentará as informações dos resultados alcançados sob os aspectos técnicos e financeiros obtidos com a execução do objeto da parceria na seguinte forma e periodicidade:
B9: 3.1) Bimestralmente, anualmente, a cada liberação de parcela (R$)e após a Conclusão do Convênio por meio de:
B10: a. Relatório de Execução do Objeto (PARCIAL E FINAL): documento que descreverá as atividades desenvolvidas, comparativo das metas propostas e resultados alcançados, acompanhado do respectivo material comprobatório. ( mapas de medição e notas fiscais comprobatórias, fotos e filmagens)
B11: b. Relatório de Execução Financeira (PARCIAL E FINAL): documento que relaciona os pagamentos efetuados em face das despesas previstas neste Plano de Trabalho e a conciliação bancária aferida pela correlação entre despesas constantes na relação de pagamentos e os débitos efetuados na conta corrente específica da parceria e devidos nexos de causalidade entre umas e outras, sua conformidade e o cumprimento das normas pertinentes.
B12: c. Cópia do Extratos Bancários (conta aplicação e conta corrente);
B13: d. Devera ser encaminhado a SEAB a CND a obra, até 30 (trinta) dias após a conclusão da execução do objeto do convênio, previsto no projeto e plano de trabalho;
B14: e. Comprovante de recolhimento de saldo ao Tesouro Estadual (se necessário ou houver)
B15: 4. O CONCEDENTE - deverá efetuar fiscalização bimenstralmente e ou quando necessário, gerando TAF - Termo de Acompanhamento e Fiscalização, e se for o caso folha de informação.
B16: a . Quando da fiscalização da SEAB, for verificado inconformidades, devera o fiscal informar o gestor passando a este cópia do TAF - Termo de acompanhamento e fiscalização para que o gestor tome as providencias necessárias, ou seja, proceder a notificação ao Tomador (municipio).
B17: b. O envio dos documentos (TAFs, folha de informação da Divisão de Apoio Técnico do DEAGRO/SEAB, e notificações) e relatórios previstos no item 3 será feito de forma eletrônica através do e-protocolo, deverá ser enviado ao NUCONV para anexar ao e-protocolo do termo de convênio.

Sheet Planilha10 12.DOC_INTEGR_PT
C2: PLANO DE TRABALHO MELHORIA DA TRAFEGABILIDADE EM ESTRADAS RURAIS MUNICIPAIS ÓLEO DIESEL com base no RTV - Relatório Técnico de Vistoria e Projetos Técnicos
B4: 12. DOCUMENTOS INTEGRANTES DO PLANO DE TRABALHO
B5: 12.1 Descrição do Documento
B6: a) Declaração de Contrapartida (FISICA OU FINANCEIRA ) no valor de R$.
B7: b) Orçamentos devidamente detalhado em planilha nos termos dos arts.368 a 372 e dos atrs. 484 a 486 do decreto Estadual 10.086/2022.
B8: C) Outros documentos necessários para execução do objeto (Caracterizar os documentos)
B10: 12.2 PARA OBRAS OU SERVIÇOS DE ENGENHARIA E ARQUITETURA
B11: a) Projeto Básico e/ou Executivo da Obra
B12: Projeto Geotécnico,
B13: Projeto topográfico,
B14: Projeto terraplanagem,
B15: Projeto de Drenagem, (quando indicado no RTV),
B16: Projeto de Pavimentação,
B17: Projeto de Sinalização horizontal e vertical (para asfalto),
B18: Memoriais de cálculos, (DMT, BDI,.....)
B19: Memorial descritivo,
B20: b) Planilha de Custos da Obra (expressando a composição dos custos unitários ou fundamentado em quantitativos de obras, serviços).
B21: c) Anotações e/ou Registros de Responsabilidade Técnica de ELABORAÇÃO, FISCALIZAÇÃO e EXECUÇÃO dos projetos e orçamentos, dos respectivos conselhos de classe CAU E OU CREA.
B22: d) Apresentação da CNO – CERTIDÃO NEGATIVA DE DA OBRA (apresentar logo após o homologação da licitação e assinatura do contrato),
B23: e) Relatório de impactos ambientais e/ou licenças ambientais, quando exigido pelos órgãos competentes (se houver ) .
B24: f) Apresentar cópia do plano diretor do municipio, com o mapa do sistema viário rural contemplando, a estrada a ser pavimentada, não serão aceitos trechos estradas dentro de perimetro urbano. Na ausencia deste, apresentar documento oficial da posse e da área de dominio da estrada, e anuência nos casos de estradas a serem trabalhadas pertencer a União ou Estado.

Sheet Plan11 10. ASSINATURAS
D2: PLANO DE TRABALHO MELHORIA DA TRAFEGABILIDADE EM ESTRADAS RURAIS MUNICIPAIS ÓLEO DIESEL com base no RTV - Relatório Técnico de Vistoria e Projetos Técnicos
B4: 13. DECLARAÇÃO DO RESPONSÁVEL TÉCNICO PELO PLANO DE APLICAÇÃO FINANCEIRA
B6: Declaro, para fins de prova junto à SEAB, estar de acordo com o plano de aplicação dos recursos deste Plano de Trabalho.
B7: Nome: | I7: __________________________
B8: Cargo: | C8: CONTADOR
B9: N.º Registro Conselho de Classe: | F9: CRC: xxxx
B10: Local: | C10: XXXXXX
B11: Data: | C11: __ /__ /2023 | I11: Assinatura
B13: 14. RESPONSÁVEL TÉCNICO PELA ELABORAÇÃO DO PLANO DE TRABALHO
B15: =CONCATENATE(N15,N16) -> O presente Plano de Trabalho foi por mim elaborado de acordo com as normas técnicas aplicáveis e está compatível com as prioridades de atendimento da agricultura familiar e com os recursos financeiros destinados pelo Projeto de Pavimentação com MELHORIAS | N15: O presente Plano de Trabalho foi por mim elaborado de acordo com as normas técnicas aplicáveis e está compatível com as prioridades de atendimento da agricultura familiar e com os recursos financeiros destinados pelo Projeto de Pavimentação com
B16: Nome: | I16: __________________________ | N16: ='Plan2 1.DADOS,2.OBJ e 2.1.Vigên'!E35 -> MELHORIAS
B17: Cargo: | C17: ENGENHEIRO (a) CIVIL
B18: N.º Registro Conselho de Classe: | F18: CREA PRXXXXX/D
B19: Local: | C19: XXXXXX
B20: Nº telefone
B21: e-mail
B22: Data: | C22: __ /__ /2023 | I22: Assinatura
B26: 15. APROVAÇÃO DO PREFEITO
B28: Nome: | C28: ='[1]Plan2 1.DADOS,2.OBJ e 2.1.Vigên'!C15:I15 -> XXXXXXXXX | I28: __________________________
B29: Cargo: | C29: PREFEITO MUNICIPAL
B30: CPF (LGPD): | C30: ='[1]Plan2 1.DADOS,2.OBJ e 2.1.Vigên'!C16:D16 -> XXXXXXXXX
B31: Local: | C31: ='[1]Plan2 1.DADOS,2.OBJ e 2.1.Vigên'!C6:I6 -> XXXXXXXXXXX
B32: Data: | C32: __ /__ /2023 | I32: Assinatura
B33: LGPD - Lei Geral de Proteção de Dados Pessoais, Lei nº 13.709/2018,
B35: 16 - ASSINATURA DO GESTOR DO CONVÊNIO PELA SEAB (Chefe do NR)
B37: Nome: | C37: XXXXXXXXXXXXXXX | I37: __________________________
B38: Cargo | C38: CHEFE DO NÚCLEO REG. SEAB/XXXXXX
B39: CPF (LGPD): | C39: XXXXXXXXXXXXXXX
B40: Local: | C40: XXXXXXXXXXXXXXX
B41: Data: | C41: __ /__ /2023 | I41: Assinatura
B42: LGPD - Lei Geral de Proteção de Dados Pessoais, Lei nº 13.709/2018,
D48: PROGRAMA ESTRADAS DA INTEGRAÇÃO PROJETO DE ADEQUAÇÃO, READEQUAÇÃO, MAUTENÇÃO E OU MELHORIAS DE ESTRADAS RURAIS MUNICIPAIS - CUSTEIO SOMENTE ÓLEO DIESEL COM BASE EM RTV - Relatório Técnico de Vistoria e Projetos Técnicos
B50: 17. MANIFESTAÇÃO TÉCNICA DO DEAGRO – SEDE
B52: Atestamos, para os devidos fins, que este Plano de Trabalho se encontra em condições técnicas para a sua aprovação pelo Sr. Secretário da Agricultura e do Abastecimento.
B54: 17.1. Técnico do DEAGRO-Sede.
B56: ________________________________________
B59: (Assinatura: nome, registro no conselho de classe) | I59: Curitiba, __ /__ /2023
B61: 17.2. Chefe do Departamento de Desenvolvimento Rural Sustentável - DEAGRO.
B63: ______________________________________
B66: Márcio da Silva | I66: Curitiba, __ /__ /2023
B67: CREA-SC 7.857/D
B70: 18. APROVAÇÃO DA SEAB
B72: =CONCATENATE(O72,N16,O73) -> Aprovamos, para os devidos fins, este Plano de Trabalho por encontrar-se em conformidade com as diretrizes do Projeto de Pavimentação com MELHORIAS, estando apto para sua efetivação via convênio. | O72: Aprovamos, para os devidos fins, este Plano de Trabalho por encontrar-se em conformidade com as diretrizes do Projeto de Pavimentação com
O73: , estando apto para sua efetivação via convênio.
B74: ________________________________________
B77: Secretário de Estado da Agricultura e do Abastecimento. | I77: Curitiba, __ /__ /2023
B78: Norberto Anacleto Ortigara

Sheet Municipios (hidden)
A1: Município | B1: Índice IPARDES 2020 | C1: Contrapartida Mínima | D1: Núcleo Regional | E1: CNPJ | F1: Credor | G1: Endereço Prefeitura | H1: Cep Prefeitura | I1: Prefeito
A2: Abatiá | B2: 0.6515688747 | C2: 5% | D2: Cornélio Procópio | E2: 75.743.567/0001-57 | F2: 214799 | G2: Av. João Carvalho Mello, 135, Centro | H2: 86.460-000 | I2: Nelson Garcia Junior
A3: Adrianópolis | B3: 0.6769420531 | C3: 5% | D3: Curitiba | E3: 76.105.642/0001-17 | F3: 102344 | G3: Av. Marechal Mascarenhas de Morães, 115, Centr | H3: 83.490-000 | I3: Vandir de Oliveira Rosa
A4: Agudos do Sul | B4: 0.5995260777 | C4: 5% | D4: Curitiba | E4: 76.105.667/0001-10 | F4: 147555 | G4: Av. Brasil, 38, Centro | H4: 83.850-000 | I4: Jesse da Rocha Zoellner
A5: Almirante Tamandaré | B5: 0.6227496598 | C5: 5% | D5: Curitiba | E5: 76.105.659/0001-74 | F5: 119789 | G5: Av. Emílio Jonhson, 360, Centro | H5: 83.501-000 | I5: Gerson Denilson Colodel
A6: Altamira do Paraná | B6: 0.7597960538 | C6: 10% | D6: Campo Mourão | E6: 78.069.143/0001-47 | F6: 119790 | G6: R. Cantú, 180, Centro | H6: 85.280-000 | I6: José Etevaldo de Oliveira
A7: Altônia | B7: 0.7319672363 | C7: 10% | D7: Umuarama | E7: 81.478.059/0001-91 | F7: 119791 | G7: R. Rui Barbosa, 815, Centro | H7: 87.550-000 | I7: Claudenir Gervasone
A8: Alto Paraíso | B8: 0.7364460539 | C8: 10% | D8: Umuarama | E8: 95.640.736/0001-30 | F8: 119792 | G8: Av. Pedro Amaro dos Santos, 900, Centro | H8: 87.528-000 | I8: Dércio Jardim Junior
A9: Alto Paraná | B9: 0.7216988479 | C9: 10% | D9: Paranavaí | E9: 76.279.967/0001-16 | F9: 119793 | G9: R. José Anchieta, 1641, Centro | H9: 87.750-000 | I9: Claudemir Joia Pereira
A10: Alto Piquiri | B10: 0.6880626127 | C10: 5% | D10: Umuarama | E10: 76.247.352/0001-08 | F10: 122329 | G10: R. Santos Dumont, 341, Centro | H10: 87.580-000 | I10: Giovane Mendes de Carvalho
A11: Alvorada do Sul | B11: 0.7288429003 | C11: 10% | D11: Londrina | E11: 75.132.860/0001-88 | F11: 119794 | G11: Praça Prefeito Antonio de Souza Lemos, 32, Centro | H11: 86.150-000 | I11: Marcos Antonio Voltarelli
A12: Amaporã | B12: 0.7277386088 | C12: 10% | D12: Paranavaí | E12: 75.475.038/0001-10 | F12: 119795 | G12: R. Sete de Setembro, 21, Centro | H12: 87.850-000 | I12: Mauro Lemos
A13: Ampére | B13: 0.7924288339 | C13: 10% | D13: Francisco Beltrão | E13: 77.817.054/0001-79 | F13: 122333 | G13: R. Maringá, 279, Centro | H13: 85.640-000 | I13: Disnei Luquini
A14: Anahy | B14: 0.7487880857 | C14: 10% | D14: Cascavel | E14: 95.594.800/0001-94 | F14: 147565 | G14: R. Vereador Leonardo Aparecido Dobicz, 591, Centro | H14: 85.425-000 | I14: Carlos Antonio Reis
A15: Andirá | B15: 0.7030229593 | C15: 10% | D15: Cornélio Procópio | E15: 76.235.761/0001-94 | F15: 119796 | G15: R. Mauro Cardoso de Oliveira, 190, Jardim Vesper | H15: 86.380-000 | I15: Ione Elisabeth Alves Abib
A16: Ângulo | B16: 0.7518146021 | C16: 10% | D16: Maringá | E16: 95.642.286/0001-15 | F16: 122334 | G16: Av. Valério Osmar Estevão, 72, Centro | H16: 86.755-000 | I16: Rogerio Aparecido Bernardo
A17: Antonina | B17: 0.544253556 | C17: 5% | D17: Paranaguá | E17: 76.022.516/0001-07 | F17: 119797 | G17: R. Xv de Novembro, 150, Centro | H17: 83.370-000 | I17: José Paulo Vieira Azim
A18: Antônio Olinto | B18: 0.7213973338 | C18: 10% | D18: União da Vitória | E18: 76.020.460/0001-43 | F18: 122335 | G18: Av. Reinaldo Machiavelli, 202, Centro | H18: 83.980-000 | I18: Alan Jaros
A19: Apucarana | B19: 0.7659746691 | C19: 10% | D19: Apucarana | E19: 75.771.253/0001-68 | F19: 119798 | G19: Praça Centro Cívico José de Oliveira Rosa, 25, Centro | H19: 86.800-235 | I19: Sebastião Ferreira Martins Junior
A20: Arapongas | B20: 0.7786566116 | C20: 10% | D20: Apucarana | E20: 76.958.966/0001-06 | F20: 119799 | G20: R. Garças, 750, Centro | H20: 86.700-285 | I20: Sergio Onofre da Silva
A21: Arapoti | B21: 0.7532447984 | C21: 10% | D21: Ponta Grossa | E21: 75.658.377/0001-31 | F21: 119800 | G21: R. Placídio Leite, 148, Centro Cívico | H21: 84.990-000 | I21: Irani Jose Barros
A22: Arapuã | B22: 0.6853661167 | C22: 5% | D22: Ivaiporã | E22: 01.612.388/0001-44 | F22: 119801 | G22: R. Presidente Café Filho, 1410, Recanto Feliz | H22: 86.884-000 | I22: Deodato Matias
A23: Araruna | B23: 0.755499827 | C23: 10% | D23: Campo Mourão | E23: 75.359.760/0001-99 | F23: 119802 | G23: Praça Nossa Senhora do Rocio, 390, Centro | H23: 87.260-000 | I23: Leandro Cesar de Oliveira
A24: Araucária | B24: 0.7968798842 | C24: 10% | D24: Curitiba | E24: 76.105.535/0001-99 | F24: 119803 | G24: R. Pedro Druszcz, 111, Centro | H24: 83.702-080 | I24: Hissam Hussein Dehaini
A25: Ariranha do Ivaí | B25: 0.6867092223 | C25: 5% | D25: Ivaiporã | E25: 01.612.453/0001-31 | F25: 119804 | G25: R. Miguel Verenka, 14, Centro | H25: 86.880-000 | I25: Thiago Epifanio da Silva
A26: Assaí | B26: 0.7502877955 | C26: 10% | D26: Cornélio Procópio | E26: 76.290.709/0001-30 | F26: 119805 | G26: Av. Rio de Janeiro, 720, Centro | H26: 86.220-000 | I26: Michel Angelo Bomtempo
A27: Assis Chateaubriand | B27: 0.7487625526 | C27: 10% | D27: Toledo | E27: 76.208.479/0001-18 | F27: 119806 | G27: Av. Cívica, S/N | H27: 85.935-000 | I27: Valter Aparecido Souza Correia
A28: Astorga | B28: 0.7611195917 | C28: 10% | D28: Maringá | E28: 75.743.377/0001-30 | F28: 119807 | G28: Av. Doutor José Soares de Azevedo, 48, Centro | H28: 86.730-000 | I28: Suzie Aparecida Pucillo Zanatta
A29: Atalaia | B29: 0.7966457266 | C29: 10% | D29: Maringá | E29: 75.731.018/0001-62 | F29: 122336 | G29: Praça José Bento dos Santos, 02, Centro | H29: 87.630-000 | I29: Carlos Eduardo Armelin Mariani
A30: Balsa Nova | B30: 0.7415984478 | C30: 10% | D30: Curitiba | E30: 76.105.527/0001-42 | F30: 147583 | G30: Av. Brasil, 665, Centro | H30: 83.650-000 | I30: Marcos Antonio Zanetti
A31: Bandeirantes | B31: 0.7288898082 | C31: 10% | D31: Cornélio Procópio | E31: 76.235.753/0001-48 | F31: 147584 | G31: R. Frei Rafael Proner, 1457, Centro | H31: 86.360-000 | I31: Jaelson Ramalho Matta
A32: Barbosa Ferraz | B32: 0.7239419867 | C32: 10% | D32: Campo Mourão | E32: 76.950.062/0001-26 | F32: 119808 | G32: Av. Presidente Kennedy, 363, Centro | H32: 86.960-000 | I32: Edenilson Aparecido Miliossi
A33: Barracão | B33: 0.7503556316 | C33: 10% | D33: Francisco Beltrão | E33: 75.666.131/0001-01 | F33: 122337 | G33: R. São Paulo, 235, Centro | H33: 85.700-000 | I33: Jorge Luiz Santin
A34: Barra do Jacaré | B34: 0.6706090356 | C34: 5% | D34: Jacarezinho | E34: 76.407.568/0001-93 | F34: 119809 | G34: R. Rui Barbosa, 96, Centro | H34: 86.385-000 | I34: Edimar de Freitas Alboneti
A35: Bela Vista da Caroba | B35: 0.7172611713 | C35: 10% | D35: Francisco Beltrão | E35: 01.612.441/0001-07 | F35: 119810 | G35: Av. Rio de Janeiro, 1021, Centro | H35: 85.745-000 | I35: Gelson Maffi
A36: Bela Vista do Paraíso | B36: 0.6882570871 | C36: 5% | D36: Londrina | E36: 76.245.067/0001-58 | F36: 119811 | G36: R. Joaquim Ladeia, 150, Centro | H36: 86.130-000 | I36: Fabricio Pastore
A37: Bituruna | B37: 0.7232163667 | C37: 10% | D37: União da Vitória | E37: 81.648.859/0001-03 | F37: 119812 | G37: Av. Doutor Oscar Geyer, 489, Centro | H37: 84.640-000 | I37: Rodrigo Rossoni
A38: Boa Esperança | B38: 0.7843433957 | C38: 10% | D38: Campo Mourão | E38: 76.217.017/0001-67 | F38: 119813 | G38: Av. Brasil, 361, Centro | H38: 87.390-000 | I38: Joel Celso Buscariol
A39: Boa Esperança do Iguaçu | B39: 0.7791616998 | C39: 10% | D39: Dois Vizinhos | E39: 95.589.255/0001-48 | F39: 122338 | G39: R. Demétrio Pinzon, 16, Centro | H39: 85.680-000 | I39: Givanildo Trumi
A40: Boa Ventura de São Roque | B40: 0.7336425141 | C40: 10% | D40: Pitanga | E40: 01.612.906/0001-20 | F40: 119814 | G40: R. Moisés Miranda, 422, Centro | H40: 85.225-000 | I40: Edson Flavio Hoffmann
A41: Boa Vista da Aparecida | B41: 0.7345787345 | C41: 10% | D41: Cascavel | E41: 78.121.985/0001-09 | F41: 122339 | G41: Av. Cícero Barbosa Sobrinho, 1190, Centro | H41: 85.780-000 | I41: Leonir Antunes dos Santos
A42: Bocaiúva do Sul | B42: 0.6272248515 | C42: 5% | D42: Curitiba | E42: 76.105.592/0001-78 | F42: 133465 | G42: R. Carlos Alberto Ribeiro, 21, Centro | H42: 83.450-000 | I42: Antonio Luiz Gusso
A43: Bom Jesus do Sul | B43: 0.6643050091 | C43: 5% | D43: Francisco Beltrão | E43: 01.612.443/0001-04 | F43: 119815 | G43: Av. Ipiranga, 72, Centro | H43: 85.708-000 | I43: Helio José Surdi
A44: Bom Sucesso | B44: 0.6951436513 | C44: 5% | D44: Apucarana | E44: 75.771.261/0001-04 | F44: 120030 | G44: Praça Paraná, 77, Centro | H44: 86.940-000 | I44: Raimundo Severiano de Almeida Junior
A45: Bom Sucesso do Sul | B45: 0.8063595675 | C45: 10% | D45: Pato Branco | E45: 80.874.100/0001-86 | F45: 119816 | G45: R. Cândido Merlo, 290, Centro | H45: 85.515-000 | I45: Nilson Antonio Feversani
A46: Borrazópolis | B46: 0.7292272344 | C46: 10% | D46: Ivaiporã | E46: 75.740.829/0001-20 | F46: 119817 | G46: Praça da República, 28, Centro | H46: 86.925-000 | I46: Dalton Fernandes Moreira
A47: Braganey | B47: 0.6981353862 | C47: 5% | D47: Cascavel | E47: 78.121.902/0001-73 | F47: 119818 | G47: Av. Arthur Pereira, 860, Centro | H47: 85.430-000 | I47: Odair Guerreiro Oliveira
A48: Brasilândia do Sul | B48: 0.6749769023 | C48: 5% | D48: Umuarama | E48: 95.640.520/0001-75 | F48: 119819 | G48: Av. Adão Arcângelo Dal Bem, 882, Centro | H48: 87.595-000 | I48: Alex Antonio Cavalcante
A49: Cafeara | B49: 0.7589957834 | C49: 10% | D49: Londrina | E49: 75.845.545/0001-06 | F49: 119820 | G49: Av. Brasil, 188, Centro | H49: 86.640-000 | I49: Elton Fabio Lazaretti
A50: Cafelândia | B50: 0.8111001264 | C50: 10% | D50: Cascavel | E50: 78.121.878/0001-72 | F50: 119821 | G50: R. Vereador Luiz Picolli, 299, Centro | H50: 85.415-000 | I50: Culestino Kiara
A51: Cafezal do Sul | B51: 0.7149192469 | C51: 10% | D51: Umuarama | E51: 95.640.652/0001-05 | F51: 119822 | G51: Av. Ítalo Orcelli, 604, Centro | H51: 87.565-000 | I51: Mario Junio Kazuo da Silva
A52: Califórnia | B52: 0.6814369747 | C52: 5% | D52: Apucarana | E52: 75.771.279/0001-06 | F52: 119823 | G52: R. 17 de Dezembro, 149, Centro | H52: 86.820-000 | I52: Paulo Wilson Mendes
A53: Cambará | B53: 0.725635452 | C53: 10% | D53: Jacarezinho | E53: 75.442.756/0001-90 | F53: 122340 | G53: Av. Brasil, 1229, Centro | H53: 86.390-000 | I53: José Salim Haggi Neto
A54: Cambé | B54: 0.7547093679 | C54: 10% | D54: Londrina | E54: 75.732.057/0001-84 | F54: 122341 | G54: R. Otto Gaertner, 65, Centro | H54: 86.181-900 | I54: Conrado Angelo Scheller
A55: Cambira | B55: 0.7692083322 | C55: 10% | D55: Apucarana | E55: 75.771.287/0001-52 | F55: 122342 | G55: Av. Canadá, 320, Centro | H55: 86.890-000 | I55: Emerson Toledo Pires
A56: Campina da Lagoa | B56: 0.7131680489 | C56: 10% | D56: Campo Mourão | E56: 76.950.070/0001-72 | F56: 119824 | G56: R. Vereador Homero Franco, 851, Centro | H56: 87.345-000 | I56: Milton Luiz Alves
A57: Campina do Simão | B57: 0.6746046278 | C57: 5% | D57: Guarapuava | E57: 01.611.489/0001-09 | F57: 119825 | G57: R. José Pedro Seleme, 3516, Centro | H57: 85.148-000 | I57: Andre Junior de Paula
A58: Campina Grande do Sul | B58: 0.6941979601 | C58: 5% | D58: Curitiba | E58: 76.105.600/0001-86 | F58: 147471 | G58: Praça Bento Munhoz da Rocha Neto, 30, Centro | H58: 83.430-000 | I58: Bihl Elerian Zanetti
A59: Campo Bonito | B59: 0.7231102042 | C59: 10% | D59: Cascavel | E59: 80.869.621/0001-45 | F59: 119826 | G59: R. Prefeito Darcísio Roberto Grassi, 252, Centro | H59: 85.450-000 | I59: Mario Weber
A60: Campo do Tenente | B60: 0.6830960841 | C60: 5% | D60: Curitiba | E60: 76.002.658/0001-02 | F60: 147618 | G60: Av. Miguel Komarchewski, 900, Centro | H60: 83.870-000 | I60: Weverton Willian Vizentin
A61: Campo Largo | B61: 0.7278417299 | C61: 10% | D61: Curitiba | E61: 76.105.618/0001-88 | F61: 119827 | G61: Av. Padre Natal Pigatto, 925, Vila Bancária | H61: 83.601-630 | I61: Mauricio Roberto Rivabem
A62: Campo Magro | B62: 0.7093199825 | C62: 10% | D62: Curitiba | E62: 01.607.539/0001-76 | F62: 131883 | G62: Rodovia Gumercindo Boza, 2823, Centro | H62: 83.535-000 | I62: Claudio Cesar Casagrande
A63: Campo Mourão | B63: 0.80639336 | C63: 10% | D63: Campo Mourão | E63: 75.904.524/0001-06 | F63: 119828 | G63: R. Brasil, 1487, Centro | H63: 87.301-140 | I63: Tauillo Tezelli
A64: Cândido de Abreu | B64: 0.6395622106 | C64: 5% | D64: Pitanga | E64: 76.175.926/0001-80 | F64: 120031 | G64: Av. Paraná, 3, Centro | H64: 84.470-000 | I64: Renan Menck Romanichen
A65: Candói | B65: 0.6893516747 | C65: 5% | D65: Guarapuava | E65: 95.684.478/0001-94 | F65: 119829 | G65: R. Xv de Novembro, 1761, Centro | H65: 85.140-000 | I65: Aldoino Goldoni Filho
A66: Cantagalo | B66: 0.6830152563 | C66: 5% | D66: Guarapuava | E66: 78.279.981/0001-45 | F66: 119830 | G66: R. Cinderela, 379, Centro | H66: 85.160-000 | I66: João Konjunski
A67: Capanema | B67: 0.7848391646 | C67: 10% | D67: Francisco Beltrão | E67: 75.972.760/0001-60 | F67: 119831 | G67: Av. Pedro Viriato Parigot de Souza, 1080, Cent | H67: 85.760-000 | I67: Américo Bellé
A68: Capitão Leônidas Marques | B68: 0.7482479141 | C68: 10% | D68: Cascavel | E68: 76.208.834/0001-59 | F68: 122343 | G68: Av. Trancredo Neves, 502, Centro | H68: 85.790-000 | I68: Maxwell Scapini
A69: Carambeí | B69: 0.7767837813 | C69: 10% | D69: Ponta Grossa | E69: 01.613.765/0001-60 | F69: 119832 | G69: Av. do Ouro , 1335, Nova Carambeí | H69: 84.145-000 | I69: Elisangela Pedroso de Oliveira Nunes
A70: Carlópolis | B70: 0.6655041713 | C70: 5% | D70: Jacarezinho | E70: 76.965.789/0001-87 | F70: 119833 | G70: R. Benedito Salles, 1060, Centro | H70: 86.420-000 | I70: Hiroshi Kubo
A71: Cascavel | B71: 0.8084872628 | C71: 10% | D71: Cascavel | E71: 76.208.867/0001-07 | F71: 119834 | G71: R. Paraná, 5000, Centro | H71: 85.810-011 | I71: Leonaldo Paranhos da Silva
A72: Castro | B72: 0.7324881974 | C72: 10% | D72: Ponta Grossa | E72: 77.001.311/0001-08 | F72: 119835 | G72: Praça Pedro Kaled, 22, Centro | H72: 84.165-540 | I72: Moacyr Elias Fadel Junior
A73: Catanduvas | B73: 0.7105862313 | C73: 10% | D73: Cascavel | E73: 76.208.842/0001-03 | F73: 119836 | G73: Av. dos Pioneiros, 500, Centro | H73: 85.470-000 | I73: Moises Aparecido de Souza
A74: Centenário do Sul | B74: 0.7405489095 | C74: 10% | D74: Londrina | E74: 75.845.503/0001-67 | F74: 122344 | G74: Praça Aurélio Basso, 378, Centro | H74: 86.630-000 | I74: Melquiades Tavian Junior
A75: Cerro Azul | B75: 0.6148337932 | C75: 5% | D75: Curitiba | E75: 76.105.626/0001-24 | F75: 214805 | G75: R. Barão do Cerro Azul, 63, Centro | H75: 83.570-000 | I75: Patrik Magari
A76: Céu Azul | B76: 0.7533652788 | C76: 10% | D76: Cascavel | E76: 76.206.473/0001-01 | F76: 119837 | G76: Av. Nilo Umberto Deitos, 1426, Centro | H76: 85.840-000 | I76: Laurindo Sperotto
A77: Chopinzinho | B77: 0.785253045 | C77: 10% | D77: Pato Branco | E77: 76.995.414/0001-60 | F77: 119838 | G77: R. Miguel Procópio Kurpel, 3811, São Miguel | H77: 85.560-000 | I77: Edson Luiz Cenci
A78: Cianorte | B78: 0.7901872276 | C78: 10% | D78: Cianorte | E78: 76.309.806/0001-28 | F78: 122345 | G78: Praça Centro Cívico, 100, Centro Cívico | H78: 87.200-000 | I78: Marco Antonio Franzato
A79: Cidade Gaúcha | B79: 0.7371195428 | C79: 10% | D79: Cianorte | E79: 75.377.200/0001-67 | F79: 122346 | G79: R. Juscelino Kubitschek de Oliveira, 2394, Centro | H79: 87.820-000 | I79: Henrique Domingues
A80: Clevelândia | B80: 0.6383258142 | C80: 5% | D80: Pato Branco | E80: 76.161.199/0001-00 | F80: 119839 | G80: Praça Getúlio Vargas, 71, Centro | H80: 85.530-000 | I80: Rafaela Martins Losi
A81: Colombo | B81: 0.6890941452 | C81: 5% | D81: Curitiba | E81: 76.105.634/0001-70 | F81: 133441 | G81: R. Xv de Novembro, 105, Centro | H81: 83.414-000 | I81: Helder Luiz Lazarotto
A82: Colorado | B82: 0.7407429087 | C82: 10% | D82: Maringá | E82: 76.970.326/0001-03 | F82: 122347 | G82: Av. Brasil, 1250, Centro | H82: 86.690-000 | I82: Marcos José Consalter de Mello
A83: Congonhinhas | B83: 0.6889693253 | C83: 5% | D83: Cornélio Procópio | E83: 75.825.828/0001-88 | F83: 147436 | G83: Av. Doutor David Xavier da Silva, 266, Centro | H83: 86.320-000 | I83: José Olegário Ribeiro Lopes
A84: Conselheiro Mairinck | B84: 0.6806240961 | C84: 5% | D84: Jacarezinho | E84: 75.968.412/0001-19 | F84: 122412 | G84: Praça Otacílio Ferreira, 82, Centro | H84: 86.480-000 | I84: Alex Sandro Pereira Costa Domingues
A85: Contenda | B85: 0.6730703159 | C85: 5% | D85: Curitiba | E85: 76.105.519/0001-04 | F85: 147484 | G85: Av. João Franco, 400, Centro | H85: 83.730-000 | I85: Antonio Adamir Digner
A86: Corbélia | B86: 0.7494418314 | C86: 10% | D86: Cascavel | E86: 76.208.826/0001-02 | F86: 133427 | G86: R. Amor Perfeito, 1616, Centro | H86: 85.420-000 | I86: Giovani Miguel Wolf Hnatuw
A87: Cornélio Procópio | B87: 0.7673678756 | C87: 10% | D87: Cornélio Procópio | E87: 76.331.941/0001-70 | F87: 119840 | G87: Av. Minas Gerais, 301, Centro | H87: 86.300-000 | I87: Amin José Hannouche
A88: Coronel Domingos Soares | B88: 0.6949600428 | C88: 5% | D88: Pato Branco | E88: 01.614.415/0001-18 | F88: 119841 | G88: Av. Araucária, 3120, Centro | H88: 85.557-000 | I88: Jandir Bandiera
A89: Coronel Vivida | B89: 0.7530635421 | C89: 10% | D89: Pato Branco | E89: 76.995.455/0001-56 | F89: 119842 | G89: Praça Angelo Mezzomo, S/N, Centro | H89: 85.550-000 | I89: Anderson Manique Barreto
A90: Corumbataí do Sul | B90: 0.7096116487 | C90: 10% | D90: Campo Mourão | E90: 80.888.662/0001-89 | F90: 119843 | G90: R. Tocantins, 153, Centro | H90: 86.970-000 | I90: Alexandre Donato
A91: Cruzeiro do Iguaçu | B91: 0.7255019225 | C91: 10% | D91: Dois Vizinhos | E91: 95.589.230/0001-44 | F91: 119844 | G91: Av. 13 de Maio, 906, Centro | H91: 85.598-000 | I91: Leonir Antônio Gelhen
A92: Cruzeiro do Oeste | B92: 0.7241305151 | C92: 10% | D92: Umuarama | E92: 76.381.854/0001-27 | F92: 119845 | G92: R. João Ormindo de Resende, 686, Centro | H92: 87.400-000 | I92: Maria Helena Bertoco Rodrigues
A93: Cruzeiro do Sul | B93: 0.7067748722 | C93: 10% | D93: Paranavaí | E93: 75.731.034/0001-55 | F93: 122348 | G93: Av. Gastão Vidigal, 600, Centro | H93: 87.650-000 | I93: Marcos César Sugigan
A94: Cruz Machado | B94: 0.6809667227 | C94: 5% | D94: União da Vitória | E94: 76.339.688/0001-09 | F94: 119846 | G94: Av. Vitória, 251, Centro | H94: 84.620-000 | I94: Antonio Luis Szaykowski
A95: Cruzmaltina | B95: 0.7608684037 | C95: 10% | D95: Ivaiporã | E95: 01.615.393/0001-00 | F95: 119847 | G95: Av. Padre Gualter Farias Negrão, 40, Centro | H95: 86.855-000 | I95: Natal Casavechia
A96: Curitiba | B96: 0.8729631095 | C96: 10% | D96: Curitiba | E96: 76.417.005/0001-86 | F96: 14 | G96: Palácio 29 de Março - Av. Cândido de Abreu, 81 | H96: 80.530-908 | I96: Rafael Valdomiro Greca de Macedo
A97: Curiúva | B97: 0.6371020454 | C97: 5% | D97: Jacarezinho | E97: 76.167.725/0001-30 | F97: 119849 | G97: Av. Antônio Cunha, 81, Centro | H97: 84.280-000 | I97: Natanael Moura dos Santos
A98: Diamante D'Oeste | B98: 0.6725609043 | C98: 5% | D98: Cascavel | E98: 77.817.476/0001-44 | F98: 119850 | G98: R. Marechal Castelo Branco, 597, Centro | H98: 85.896-000 | I98: Guilherme Pivatto Junior
A99: Diamante do Norte | B99: 0.7837566816 | C99: 10% | D99: Paranavaí | E99: 76.972.082/0001-06 | F99: 119851 | G99: R. José Vicente, 257, Centro | H99: 87.990-000 | I99: Eliel dos Santos Correa
A100: Diamante do Sul | B100: 0.7077608025 | C100: 10% | D100: Laranjeiras Do Sul | E100: 95.595.120/0001-95 | F100: 122349 | G100: Av. Getúlio Vargas, S/N, Centro | H100: 85.408-000 | I100: Darci Tirelli
A101: Dois Vizinhos | B101: 0.8176750486 | C101: 10% | D101: Dois Vizinhos | E101: 76.205.640/0001-08 | F101: 119852 | G101: Av. Rio Grande do Sul, 130, Centro | H101: 85.660-000 | I101: Luis Carlos Turatto
A102: Douradina | B102: 0.8626504244 | C102: 10% | D102: Umuarama | E102: 78.200.110/0001-94 | F102: 119853 | G102: Av. Barão do Rio Branco, 767, Centro | H102: 87.485-000 | I102: Oberdam José de Oliveira
A103: Doutor Camargo | B103: 0.7393686012 | C103: 10% | D103: Maringá | E103: 76.282.714/0001-00 | F103: 120028 | G103: R. Xavier da Silva, 1000, Centro | H103: 87.155-000 | I103: Édilen Henrique Xavier
A104: Doutor Ulysses | B104: 0.548164568 | C104: 5% | D104: Curitiba | E104: 95.422.911/0001-13 | F104: 122350 | G104: R. Olívio Gabriel de Oliveira, 10, Centro | H104: 83.590-000 | I104: Moiseis Branco da Silva
A105: Enéas Marques | B105: 0.7287718198 | C105: 10% | D105: Francisco Beltrão | E105: 76.205.657/0001-57 | F105: 119854 | G105: Av. Joaquim Bonetti, 579, Centro | H105: 85.630-000 | I105: Edson Lupatini
A106: Engenheiro Beltrão | B106: 0.7519401995 | C106: 10% | D106: Campo Mourão | E106: 76.950.039/0001-31 | F106: 119855 | G106: R. Manoel Ribas, 160, Centro | H106: 87.270-000 | I106: Adalmir José Garbim Junior
A107: Entre Rios do Oeste | B107: 0.7598600098 | C107: 10% | D107: Toledo | E107: 95.719.449/0001-10 | F107: 119856 | G107: R. Tocantins, 600, Centro | H107: 85.988-000 | I107: Ari Aloisio Maldaner
A108: Esperança Nova | B108: 0.7568753251 | C108: 10% | D108: Umuarama | E108: 01.612.269/0001-91 | F108: 119857 | G108: Av. Juvenal Silva Braga, 400, Centro | H108: 87.545-000 | I108: Everton Barbieri
A109: Espigão Alto do Iguaçu | B109: 0.697407592 | C109: 5% | D109: Laranjeiras Do Sul | E109: 01.612.634/0001-68 | F109: 119858 | G109: Av. Brasília, 551, Centro | H109: 85.465-000 | I109: Agenor Bertoncelo
A110: Farol | B110: 0.6506452212 | C110: 5% | D110: Campo Mourão | E110: 95.640.124/0001-48 | F110: 122351 | G110: R. Bahia, 880, Centro | H110: 87.325-000 | I110: Oclecio de Freitas Meneses
A111: Faxinal | B111: 0.7160066729 | C111: 10% | D111: Ivaiporã | E111: 75.771.295/0001-07 | F111: 119859 | G111: Av. Brasil, 694, Centro | H111: 86.840-000 | I111: Ylson Alvaro Cantagallo
A112: Fazenda Rio Grande | B112: 0.7276315761 | C112: 10% | D112: Curitiba | E112: 95.422.986/0001-02 | F112: 122352 | G112: R. Jacarandá, 300, Nações | H112: 83.820-000 | I112: Nassib Kassem Hammad
A113: Fênix | B113: 0.7142692428 | C113: 10% | D113: Campo Mourão | E113: 76.950.021/0001-30 | F113: 119860 | G113: R. Jangada, 25, Centro | H113: 86.950-000 | I113: Altair Molina Serrano
A114: Fernandes Pinheiro | B114: 0.707645651 | C114: 10% | D114: Irati | E114: 01.619.323/0001-20 | F114: 119861 | G114: Av. Remis João Loss, 600, Centro | H114: 84.535-000 | I114: Cleonice Aparecida Kufener Schuck
A115: Figueira | B115: 0.6858981131 | C115: 5% | D115: Jacarezinho | E115: 78.063.732/0001-18 | F115: 119862 | G115: R. Doutor Zoilo Meira Simões, 410, Centro | H115: 84.285-000 | I115: José Carlos Contiero
A116: Floraí | B116: 0.7796031156 | C116: 10% | D116: Maringá | E116: 75.731.000/0001-60 | F116: 122353 | G116: R. Presidente Getúlio Vargas, 177 | H116: 87.185-000 | I116: Edna de Lourdes Carpine Contin
A117: Flor da Serra do Sul | B117: 0.7257750451 | C117: 10% | D117: Francisco Beltrão | E117: 95.589.271/0001-30 | F117: 119863 | G117: R. João Arisi, 115, Centro | H117: 85.618-000 | I117: Valmor Felipe Junior
A118: Floresta | B118: 0.7384642277 | C118: 10% | D118: Maringá | E118: 76.282.706/0001-55 | F118: 119864 | G118: Av. Getúlio Vargas, 2420, Centro | H118: 87.120-000 | I118: Ademir Luiz Maciel
A119: Florestópolis | B119: 0.6829827213 | C119: 5% | D119: Londrina | E119: 75.845.495/0001-59 | F119: 122354 | G119: R. Santo Inácio, 161, Centro | H119: 86.165-000 | I119: Onicio de Souza
A120: Flórida | B120: 0.7671575667 | C120: 10% | D120: Maringá | E120: 75.772.400/0001-14 | F120: 122355 | G120: R. São Pedro, 443, Centro | H120: 86.780-000 | I120: Antonio Emerson Sette
A121: Formosa do Oeste | B121: 0.7418106932 | C121: 10% | D121: Toledo | E121: 76.208.495/0001-00 | F121: 147689 | G121: Av. Severiano Bonfim dos Santos, 111, Centro | H121: 85.830-000 | I121: Luiz Antonio Domingos de Aguiar
A122: Foz do Iguaçu | B122: 0.7376805064 | C122: 10% | D122: Cascavel | E122: 76.206.606/0001-40 | F122: 147495 | G122: Praça Getúlio Vargas, 280, Centro | H122: 85.851-340 | I122: Francisco Lacerda Brasileiro
A123: Foz do Jordão | B123: 0.6496485311 | C123: 5% | D123: Guarapuava | E123: 01.603.719/0001-80 | F123: 122356 | G123: R. Padre Emílio Barbiéri, 339, Centro | H123: 85.145-000 | I123: Francisco Clei da Silva
A124: Francisco Alves | B124: 0.6634061763 | C124: 5% | D124: Umuarama | E124: 77.356.665/0001-67 | F124: 119865 | G124: R. Jorge Fereira, 627, Centro | H124: 87.570-000 | I124: Valter Cesar Rosa
A125: Francisco Beltrão | B125: 0.7627982888 | C125: 10% | D125: Francisco Beltrão | E125: 77.816.510/0001-66 | F125: 119866 | G125: R. Octaviano Teixeira dos Santos, 1000, Centro | H125: 85.600-000 | I125: Cleber Fontana
A126: General Carneiro | B126: 0.6404376566 | C126: 5% | D126: União da Vitória | E126: 75.687.681/0001-07 | F126: 122357 | G126: Av. Presidente Getúlio Vargas, 601, Centro | H126: 84.660-000 | I126: Joel Ricardo Martins Ferreira
A127: Godoy Moreira | B127: 0.7261387947 | C127: 10% | D127: Ivaiporã | E127: 81.392.656/0001-07 | F127: 119867 | G127: R. Sebastião Máximo, 184, Centro | H127: 86.938-000 | I127: Primis de Oliveira
A128: Goioerê | B128: 0.7498538437 | C128: 10% | D128: Campo Mourão | E128: 78.198.975/0001-63 | F128: 119868 | G128: Av. Amazonas, 280, Jardim Lindóia | H128: 87.360-000 | I128: Roberto dos Reis de Lima
A129: Goioxim | B129: 0.7051594825 | C129: 10% | D129: Guarapuava | E129: 01.607.627/0001-78 | F129: 131884 | G129: R. Laurindo Cordeiro de Souza, 184, Centro | H129: 85.162-000 | I129: Mari Terezinha da Silva
A130: Grandes Rios | B130: 0.7128330522 | C130: 10% | D130: Ivaiporã | E130: 75.741.348/0001-39 | F130: 119869 | G130: Av. Brasil, 967, Centro | H130: 86.845-000 | I130: Antonio Ribeiro da Silva
A131: Guaíra | B131: 0.7033926763 | C131: 10% | D131: Toledo | E131: 77.857.183/0001-90 | F131: 119870 | G131: Av. Coronel Otávio Tosta, 126 | H131: 85.980-000 | I131: Heraldo Trento
A132: Guairaçá | B132: 0.6725312716 | C132: 5% | D132: Paranavaí | E132: 76.238.443/0001-87 | F132: 122358 | G132: R. Francisco Vieira, 1181 | H132: 87.880-000 | I132: Marcelo Alves de Oliveira
A133: Guamiranga | B133: 0.6791233056 | C133: 5% | D133: Irati | E133: 01.616.255/0001-46 | F133: 119871 | G133: R. Diogo Emanuel de Almeida, 234, Centro | H133: 84.435-000 | I133: Marcelo Leite
A134: Guapirama | B134: 0.7473823127 | C134: 10% | D134: Jacarezinho | E134: 75.443.812/0001-00 | F134: 119872 | G134: R. Dois de Março, 460 | H134: 86.465-000 | I134: Eduí Gonçalves
A135: Guaporema | B135: 0.7402076441 | C135: 10% | D135: Cianorte | E135: 75.378.844/0001-70 | F135: 119873 | G135: R. Pará, 86 | H135: 87.810-000 | I135: Gilberto Castiglioni
A136: Guaraci | B136: 0.6819047587 | C136: 5% | D136: Londrina | E136: 75.845.537/0001-51 | F136: 122359 | G136: R. Prefeito João de Giuli, 180 | H136: 86.620-000 | I136: Sidnei Dezoti
A137: Guaraniaçu | B137: 0.7063584304 | C137: 10% | D137: Laranjeiras Do Sul | E137: 76.208.818/0001-66 | F137: 119874 | G137: Av. Abilon de Souza Neves, 394 | H137: 85.400-000 | I137: Osmario de Lima Portela
A138: Guarapuava | B138: 0.7710757154 | C138: 10% | D138: Guarapuava | E138: 76.178.037/0001-76 | F138: 122327 | G138: R. Brigadeiro Rocha, 2777 | H138: 85.010-210 | I138: Celso Fernando Góes
A139: Guaraqueçaba | B139: 0.5494153491 | C139: 5% | D139: Paranaguá | E139: 76.022.508/0001-52 | F139: 122360 | G139: R. Major Domingos do Nascimento, 46 | H139: 83.390-000 | I139: Lilian Ramos Narloch
A140: Guaratuba | B140: 0.6436360987 | C140: 5% | D140: Paranaguá | E140: 76.017.474/0001-08 | F140: 120032 | G140: R. Doutor João Cândido, 380, Centro | H140: 83.280-000 | I140: Roberto Cordeiro Justus
A141: Honório Serpa | B141: 0.7360543147 | C141: 10% | D141: Pato Branco | E141: 95.585.444/0001-42 | F141: 122361 | G141: R. Elpídio dos Santos, 541 | H141: 85.548-000 | I141: Luciano Dias
A142: Ibaiti | B142: 0.7265415844 | C142: 10% | D142: Jacarezinho | E142: 77.008.068/0001-41 | F142: 122362 | G142: R. Vereador José de Moura Bueno, 23 - Praça dos T | H142: 84.900-000 | I142: Antonely de Cássio Alves de Carvalho
A143: Ibema | B143: 0.715385091 | C143: 10% | D143: Cascavel | E143: 80.881.931/0001-85 | F143: 119875 | G143: Av. Ney Euirson Napoli, 1426, Centro | H143: 85.478-000 | I143: Viviane Comiran
A144: Ibiporã | B144: 0.7503582466 | C144: 10% | D144: Londrina | E144: 76.244.961/0001-03 | F144: 119876 | G144: R. Padre Vitoriano Valente, 540, Centro | H144: 86.200-000 | I144: José Maria Ferreira
A145: Icaraíma | B145: 0.6998848156 | C145: 5% | D145: Umuarama | E145: 76.247.337/0001-60 | F145: 119877 | G145: Av. Hermes Vissoto, 810 | H145: 87.530-000 | I145: Marcos Alex de Oliveira
A146: Iguaraçu | B146: 0.7996396821 | C146: 10% | D146: Maringá | E146: 75.772.525/0001-44 | F146: 147713 | G146: R. Otávio Pedro da Silva, 294 | H146: 86.750-000 | I146: Eliseu Silva da Costa
A147: Iguatu | B147: 0.7606244765 | C147: 10% | D147: Cascavel | E147: 95.595.013/0001-67 | F147: 119878 | G147: Av. Centenário, 500, Centro | H147: 85.423-000 | I147: Vlademir Antonio Barella
A148: Imbaú | B148: 0.6232999275 | C148: 5% | D148: Ponta Grossa | E148: 01.613.770/0001-72 | F148: 122363 | G148: Av. Francisco Siqueira Kortz, 471, São Cristóv | H148: 84.250-000 | I148: Dayane Sovinski Rodrigues
A149: Imbituva | B149: 0.7210782929 | C149: 10% | D149: Irati | E149: 76.175.892/0001-23 | F149: 119879 | G149: R. José Buhrer Júnior, 462 | H149: 84.430-000 | I149: Celso Kubaski
A150: Inácio Martins | B150: 0.6443108259 | C150: 5% | D150: Irati | E150: 76.178.029/0001-20 | F150: 119880 | G150: R. Sete de Setembro, 332 | H150: 85.155-000 | I150: Edemetrio Benato Junior
A151: Inajá | B151: 0.7428674773 | C151: 10% | D151: Paranavaí | E151: 76.970.318/0001-67 | F151: 122364 | G151: Av. Antonio Vieira Martins, 80 | H151: 87.670-000 | I151: Cléber Geraldo da Silva
A152: Indianópolis | B152: 0.7315191735 | C152: 10% | D152: Cianorte | E152: 75.798.355/0001-77 | F152: 119881 | G152: Praça Caramurú, 150 | H152: 87.210-000 | I152: Juliano Trevisan Cordeiro
A153: Ipiranga | B153: 0.6330518579 | C153: 5% | D153: Ponta Grossa | E153: 76.175.934/0001-26 | F153: 119882 | G153: R. Xv de Novembro, 545, Centro | H153: 84.450-000 | I153: Douglas Davi Cruz
A154: Iporã | B154: 0.6959564193 | C154: 5% | D154: Umuarama | E154: 75.738.484/0001-70 | F154: 119883 | G154: R. Pedro Alvares Cabral, 2677 | H154: 87.560-000 | I154: Sergio Luiz Borges
A155: Iracema do Oeste | B155: 0.6871233354 | C155: 5% | D155: Toledo | E155: 95.583.555/0001-10 | F155: 119884 | G155: R. Professor Vieira de Alencar, 441 | H155: 85.833-000 | I155: Elza Haase Rodrigues
A156: Irati | B156: 0.7520163808 | C156: 10% | D156: Irati | E156: 75.654.574/0001-82 | F156: 119885 | G156: R. Coronel Emílio Gomes, 22 | H156: 84.500-000 | I156: Jorge David Derbli Pinto
A157: Iretama | B157: 0.714637382 | C157: 10% | D157: Campo Mourão | E157: 76.950.088/0001-74 | F157: 122365 | G157: R. Oscar Gauer Khunn, 174 | H157: 87.280-000 | I157: Same Saab
A158: Itaguajé | B158: 0.7191431361 | C158: 10% | D158: Maringá | E158: 76.970.359/0001-53 | F158: 147724 | G158: Av. Governador Moisés Lupion, 605 | H158: 86.670-000 | I158: Crisogono Noleto E Silva Junior
A159: Itaipulândia | B159: 0.7773892813 | C159: 10% | D159: Cascavel | E159: 95.725.057/0001-64 | F159: 147725 | G159: R. São Miguel do Iguaçu, 1891 | H159: 80.588-000 | I159: Cleide Ines Griebeler Prates
A160: Itambaracá | B160: 0.659607539 | C160: 5% | D160: Cornélio Procópio | E160: 76.235.738/0001-08 | F160: 119886 | G160: Av. Interventor Manoel Ribas, 6, Centro | H160: 86.375-000 | I160: Mônica Cristina Zambon Holzmann
A161: Itambé | B161: 0.7272569222 | C161: 10% | D161: Maringá | E161: 76.282.698/0001-47 | F161: 133431 | G161: Praça Rui Barbosa, 34 | H161: 87.175-000 | I161: Vitor Aparecido Fedrigo
A162: Itapejara D'Oeste | B162: 0.7732804719 | C162: 10% | D162: Pato Branco | E162: 76.995.430/0001-52 | F162: 119887 | G162: Av. Manoel Ribas, 620, Centro | H162: 85.580-000 | I162: Vilmar Schmoller
A163: Itaperuçu | B163: 0.5932592304 | C163: 5% | D163: Curitiba | E163: 95.422.846/0001-26 | F163: 147510 | G163: Av. Crispim Furquim da Siqueira, 1800 | H163: 83.560-000 | I163: Neneu Jose Artigas
A164: Itaúna do Sul | B164: 0.6631296772 | C164: 5% | D164: Paranavaí | E164: 75.458.836/0001-33 | F164: 119888 | G164: Av. Brasil, 883, Centro | H164: 87.980-000 | I164: Gilson José de Gois
A165: Ivaí | B165: 0.6832086421 | C165: 5% | D165: Ponta Grossa | E165: 76.175.918/0001-33 | F165: 119889 | G165: R. Rui Barbosa, 632 | H165: 84.460-000 | I165: Idir Treviso
A166: Ivaiporã | B166: 0.7363241577 | C166: 10% | D166: Ivaiporã | E166: 75.741.330/0001-37 | F166: 119890 | G166: R. Rio Grande do Norte, 1000 | H166: 86.870-000 | I166: Luiz Carlos Gil
A167: Ivaté | B167: 0.7621481819 | C167: 10% | D167: Umuarama | E167: 95.640.553/0001-15 | F167: 122366 | G167: Av. Rio de Janeiro, 2758 | H167: 87.525-000 | I167: Denilson Vaglieri Prevital
A168: Ivatuba | B168: 0.7348492263 | C168: 10% | D168: Maringá | E168: 76.285.337/0001-54 | F168: 122367 | G168: R. Marechal Floriano, 797 | H168: 87.130-000 | I168: Sergio José Santi
A169: Jaboti | B169: 0.710130271 | C169: 10% | D169: Jacarezinho | E169: 75.969.667/0001-04 | F169: 119891 | G169: Praça Minas Gerais, 175 | H169: 84.930-000 | I169: Regis William Siqueira Rodrigues
A170: Jacarezinho | B170: 0.7481342676 | C170: 10% | D170: Jacarezinho | E170: 76.966.860/0001-46 | F170: 119892 | G170: R. Coronel Baptista, 335 | H170: 86.400-000 | I170: Marcelo José Bernardeli Palhares
A171: Jaguapitã | B171: 0.7865533153 | C171: 10% | D171: Londrina | E171: 75.457.341/0001-90 | F171: 122368 | G171: Av. Minas Gerais, 220 | H171: 86.610-000 | I171: Gerson Luiz Marcato
A172: Jaguariaíva | B172: 0.7348952064 | C172: 10% | D172: Ponta Grossa | E172: 76.910.900/0001-38 | F172: 119893 | G172: Praça Isabel Branco, 142, Cidade Alta | H172: 84.200-000 | I172: Alcione Lemos
A173: Jandaia do Sul | B173: 0.775616824 | C173: 10% | D173: Apucarana | E173: 75.771.204/0001-25 | F173: 119894 | G173: Praça do Café, 22 | H173: 86.900-000 | I173: Lauro de Souza Silva Junior
A174: Janiópolis | B174: 0.7446534848 | C174: 10% | D174: Campo Mourão | E174: 76.402.882/0001-83 | F174: 120033 | G174: R. Rui Barbosa, 286, Centro | H174: 87.380-000 | I174: Ismael Jose Dezanoski
A175: Japira | B175: 0.6487697007 | C175: 5% | D175: Jacarezinho | E175: 75.969.881/0001-52 | F175: 119895 | G175: Av. Alexandre Leite dos Santos, 481, Centro | H175: 84.920-000 | I175: Angelo Marcos Vigilato
A176: Japurá | B176: 0.7818658506 | C176: 10% | D176: Cianorte | E176: 75.788.349/0001-39 | F176: 119896 | G176: Av. Bolivar, 363, Centro | H176: 87.225-000 | I176: Adriana Cristina Polizer
A177: Jardim Alegre | B177: 0.720322061 | C177: 10% | D177: Ivaiporã | E177: 75.741.363/0001-87 | F177: 122369 | G177: Praça Mariana Leite Felix, 800 | H177: 86.860-000 | I177: José Roberto Furlan
A178: Jardim Olinda | B178: 0.7375650007 | C178: 10% | D178: Paranavaí | E178: 76.970.383/0001-92 | F178: 122370 | G178: Av. Siqueira Campos, 83, Centro | H178: 87.690-000 | I178: Lucimar de Souza Morais
A179: Jataizinho | B179: 0.6402157629 | C179: 5% | D179: Cornélio Procópio | E179: 76.245.042/0001-54 | F179: 147744 | G179: Av. Presidente Getúlio Vargas, 494 | H179: 86.210-000 | I179: Wilson Fernandes
A180: Jesuítas | B180: 0.7465025888 | C180: 10% | D180: Toledo | E180: 77.398.154/0001-08 | F180: 119897 | G180: R. Padre Leonel França, 369 | H180: 85.835-000 | I180: Aparecido Jose Weiller Junior
A181: Joaquim Távora | B181: 0.7884696901 | C181: 10% | D181: Jacarezinho | E181: 76.966.845/0001-06 | F181: 122371 | G181: R. Miguel Dias, 226, Centro | H181: 86.455-000 | I181: Reginaldo Vilela
A182: Jundiaí do Sul | B182: 0.6920886157 | C182: 5% | D182: Jacarezinho | E182: 76.408.061/0001-54 | F182: 175629 | G182: Praça Pio X, 260, Centro | H182: 86.470-000 | I182: Eclair Rauen
A183: Juranda | B183: 0.7388929025 | C183: 10% | D183: Campo Mourão | E183: 78.196.755/0001-09 | F183: 119898 | G183: Praça Henrique Szafermann, 139, Centro | H183: 87.355-000 | I183: Leila Miotto Amadei
A184: Jussara | B184: 0.8011188608 | C184: 10% | D184: Cianorte | E184: 75.789.552/0001-20 | F184: 119899 | G184: Av. Princesa Izabel, 320, Centro | H184: 87.230-000 | I184: Robison Pedroso da Silva
A185: Kaloré | B185: 0.7423506434 | C185: 10% | D185: Apucarana | E185: 75.771.238/0001-10 | F185: 122372 | G185: Praça Francisco Lemes Gonçalves, 267, Centro | H185: 86.920-000 | I185: Edmilson Luis Stencel
A186: Lapa | B186: 0.6926390789 | C186: 5% | D186: Curitiba | E186: 76.020.452/0001-05 | F186: 119788 | G186: Alameda David Carneiro, 243, Centro | H186: 83.750-000 | I186: Diego Timbirussu Ribas
A187: Laranjal | B187: 0.6157981611 | C187: 5% | D187: Pitanga | E187: 95.684.536/0001-80 | F187: 119900 | G187: R. Pernambuco, 501, Centro | H187: 85.275-000 | I187: João Elinton Dutra
A188: Laranjeiras do Sul | B188: 0.7264214841 | C188: 10% | D188: Laranjeiras Do Sul | E188: 76.205.970/0001-95 | F188: 119901 | G188: R. Expedicionário João Maria, 1020, Centro | H188: 85.301-410 | I188: Jonatas Felisberto da Silva
A189: Leópolis | B189: 0.664150927 | C189: 5% | D189: Cornélio Procópio | E189: 75.388.850/0001-08 | F189: 119902 | G189: R. Pedro Domingues de Souza, 374, Centro | H189: 86.330-000 | I189: Alessandro Ribeiro
A190: Lidianópolis | B190: 0.6922023081 | C190: 5% | D190: Ivaiporã | E190: 95.680.831/0001-68 | F190: 119903 | G190: R. Juscelino Kubitschek, 327, Centro | H190: 86.865-000 | I190: Adauto Aparecido Mandu
A191: Lindoeste | B191: 0.7125451985 | C191: 10% | D191: Cascavel | E191: 80.881.915/0001-92 | F191: 147756 | G191: Av. Marechal Cândido Rondon, S/N, Centro | H191: 85.826-000 | I191: Silvio de Souza
A192: Loanda | B192: 0.6924819832 | C192: 5% | D192: Paranavaí | E192: 76.972.074/0001-51 | F192: 119904 | G192: R. Mato Grosso, 354, Alto da Glória | H192: 87.900-000 | I192: José Maria Pereira Fernandes
A193: Lobato | B193: 0.7439789646 | C193: 10% | D193: Maringá | E193: 76.970.367/0001-08 | F193: 119905 | G193: R. Antonio Coleto, 1260, Centro | H193: 86.790-000 | I193: Fabio Chicaroli
A194: Londrina | B194: 0.8050871105 | C194: 10% | D194: Londrina | E194: 75.771.477/0001-70 | F194: 140982 | G194: Av. Duque de Caxias, 635, Jardim Mazei Ii | H194: 86.015-901 | I194: Marcelo Belinati Martins
A195: Luiziana | B195: 0.7380305933 | C195: 10% | D195: Campo Mourão | E195: 80.888.688/0001-27 | F195: 122373 | G195: R. Doutor Miguel Vieira Ferreira, 22, Centro | H195: 87.290-000 | I195: Wilson Antônio Tureck
A196: Lunardelli | B196: 0.7393923889 | C196: 10% | D196: Ivaiporã | E196: 78.600.491/0001-07 | F196: 122374 | G196: Av. Dom Pedro Ii, 195, Centro | H196: 86.935-000 | I196: Reinaldo Grola
A197: Lupionópolis | B197: 0.6294714471 | C197: 5% | D197: Londrina | E197: 75.845.511/0001-03 | F197: 119906 | G197: Praça Padre Antonio Pozzato, 880, Centro | H197: 86.635-000 | I197: Antonio Peloso Filho
A198: Mallet | B198: 0.7852398587 | C198: 10% | D198: Irati | E198: 75.654.566/0001-36 | F198: 119907 | G198: R. Xv de Novembro, 28, Centro | H198: 84.570-000 | I198: Moacir Alfredo Szinvelski
A199: Mamborê | B199: 0.7603679329 | C199: 10% | D199: Campo Mourão | E199: 75.368.928/0001-22 | F199: 122375 | G199: R. Guadalajara, 645, Centro | H199: 87.340-000 | I199: Ricardo Radomski
A200: Mandaguaçu | B200: 0.7573011848 | C200: 10% | D200: Maringá | E200: 76.285.329/0001-08 | F200: 119908 | G200: R. Bernardino Bogo, 175, Centro | H200: 87.160-000 | I200: Maurício Aparecido da Silva
... 200 more rows
